Workbook

Sheet Instruction (hidden)
A1: आयकर गणना प्रपत्र 2021-22
A3: Master Sheet Instruction
A4: 1 | B4: Employee Name | C4: अपना नाम लिखिए
A5: 2 | B5: Post | C5: अपनी पोस्ट ड्राप डाउन लिस्ट में से चयन करे |
A6: 3 | B6: Cader | C6: अपना कैडर चयन करे |
A7: 4 | B7: Are you in Probation | C7: अगर आप प्रोबेशन में है तो ड्राप डाउन में से YES का चयन करे अन्यथा NO का चयन करे |
A8: 5 | B8: PAY-Level | C8: अपना पे लेवल का चयन ड्राप डाउन लिस्ट में से करे |
A9: 6 | B9: Employee ID | C9: अपनी एम्प्लोयी आईडी लिखिए |
A10: 7 | B10: PAN NO. | C10: अपना पैन नंबर लिखिए |
A11: 8 | B11: SI No. | C11: अपने एस.आई. नंबर लिखिए |
A12: 9 | B12: GPF/PRAN No. | C12: अपने GPF या PRAN नंबर लिखिए |
A13: 10 | B13: Bank Account No. | C13: अपने बैंक अकाउंट नंबर लिखिए |
A14: 11 | B14: Mobile No. | C14: अपने मोबाइल नंबर लिखिए |
A15: 12 | B15: मार्च का बेसिक | C15: आपका मार्च का बेसिक लिखिये |
A16: 13 | B16: HRA Rate | C16: अपनी हाउस रेंट का प्रतिशत ड्राप डाउन में से चयन करे |
A17: 14 | B17: SIP (Monthly Amount) | C17: एस.आई. का मासिक अमाउंट लिखिए |
A18: 15 | B18: SI Loan (Monthly Amount) | C18: एस.आई. लोन का मासिक अमाउंट लिखिए |
A19: 16 | B19: GPF (Monthly Amount) | C19: GPF का मासिक अमाउंट लिखिए |
A20: 17 | B20: GPF Loan (Monthly Amount) | C20: GPF लोन का मासिक अमाउंट लिखिए |
A21: 18 | B21: Are You NPS Employee | C21: यदि आप NPS एम्प्लोई है तो ड्राप डाउन में से YES का चयन करे अन्यथा NO का चयन करे |
A22: 19 | B22: बोनस मिला या नहीं | C22: यदि आपको बोनस मिला है तो ड्राप डाउन में से YES का चयन करे अन्यथा NO का चयन करे |
A23: 20 | B23: बोनस कितने माह का | C23: यदि बोनस मिला है तो कितने महीने का मिला है ड्राप डाउन लिस्ट में से चयन करे |
A24: 21 | B24: DA Arrear मिला या नहीं | C24: यदि आपको DA Arrear मिला है तो ड्राप डाउन में से YES का चयन करे अन्यथा NO का चयन करे |
A25: 22 | B25: समर्पित 19-20 उठाया या नहीं | C25: यदि आपने सत्र 2019-20 में समर्पित उठाया है तो ड्राप डाउन में से YES का चयन करे अन्यथा NO का चयन करे |
A26: 23 | B26: समर्पित 19-20 कौनसे माह में उठाया | C26: सत्र 2019-20 में समर्पित कौनसे माह में उठाया उस माह का क्रमांक भरे |
A27: 24 | B27: 60-80 वर्ग | C27: यदि आप 60-80 वर्ष की आयु वर्ग के है तो ड्राप डाउन में से YES का चयन करे अन्यथा NO का चयन करे |
A28: 25 | B28: समर्पित 20-21 उठाया या नहीं | C28: यदि आपने सत्र 2020-21 में समर्पित उठाया है तो ड्राप डाउन में से YES का चयन करे अन्यथा NO का चयन करे |
A29: 26 | B29: समर्पित 20-21 कौनसे माह में उठाया | C29: सत्र 2020-21 में समर्पित कौनसे माह में उठाया उस माह का क्रमांक भरे |
A30: 27 | B30: क्या आप Covid-19 कटौती रखना चाहते है | C30: यदि आप Covid-19 की कटौती जारी रखना चाहते हो तो ड्राप डाउन में से YES का चयन करे अन्यथा NO का चयन करे |
A32: Other Ded. Sheet Instruction
A33: 1 | B33: मकान किराया भत्ता ( छूट जो लेनी है)
A34: 2 | B34: गृह सम्पति से प्राप्त किराया - आय
A35: 3 | B35: गृहकर
A36: 4 | B36: सरकारी पेंशन योजना में कर्मचारी का अंशदान अधिकतम वेतन का 10% धारा 80 CCD(1)
A37: 5 | B37: Covid - 19 (धारा 80G)
A38: 6 | B38: गृह ऋण किस्त मूल (जो वेतन से नहीं काटा गया)
A39: 7 | B39: गृह ऋण किस्त ब्याज (जो वेतन से नहीं काटा गया)
A40: 8 | B40: LIC जीवन बीमा प्रीमियम (जो वेतन से नही काटा गया)
A41: 9 | B41: PLI (पी.एल.आई.)
A42: 10 | B42: टयूशन फीस
A43: 11 | B43: PPF (लोक भविष्य निधि)
A44: 12 | B44: सुकन्या समृद्धि योजना
A45: 13 | B45: यू. एल. आई. पी./वार्षिक प्लान
A46: 14 | B46: NSS (राष्ट्रीय बचत स्कीम)
A47: 15 | B47: NSC (राष्ट्रीय बचत पत्र)
A48: 16 | B48: राष्ट्रीय बचत पत्र पर ब्याज
A49: 17 | B49: बचत खाते की जमा राशि पर प्राप्त ब्याज
A50: 18 | B50: इक्विटी लिंक सेविंग स्कीम
A51: 19 | B51: Defferred Annuty (स्थगित वार्षिकी)
A52: 20 | B52: मनोरंजन भता धारा 16 (II) के अन्तर्गत
A53: 21 | B53: व्यवयाय कर धारा 16 (III) के अन्तगर्त
A54: 22 | B54: एफडी आदि अन्य जमा राशि पर प्राप्त कुल ब्याज (पीपीएफ को छोड़कर)
A55: 23 | B55: अन्य विभिन्न स्त्रो़त्र (ब्याज के अलावा) से कुल आय
A56: 24 | B56: धारा 80 सी के अन्तर्गत अन्य मद में जमा करायी गयी राशि
A57: 25 | B57: धारा 80 CCC पेंशन प्लान हेतु अंशदान (एन.पी.एस. के अलावा)
A58: 26 | B58: धारा 80CCD (1B) नवीन पेंशन योजना में अतिरिक्त अंशदान (अधिकतम रू. 50,000)
A59: 27 | B59: धारा 80D चिकित्सा बीमा प्रीमियम (सामान्य 25000, वरिष्ठ नागरिक 50000)
A60: 28 | B60: धारा 80DD विकलांग आश्रितों के चिकित्सा उपचार(अधिकतम 75000, 80% विकलांगता 125000)
A61: 29 | B61: धारा 80DDB विशिष्ट रोगों के उपचार हेतु कटौती (सामान्य 40000, वरिष्ठ नागरिक 1 लाख)
A62: 30 | B62: धारा 80E उच्च शिक्षा हेतु लिए ऋण का ब्याज
A63: 31 | B63: धारा 80U स्थाई शारीरिक विकलांगता (अधिकतम 75000ए 80% विकलांगता 125000)
A64: 32 | B64: धारा 80GGA अनुमोदित वैज्ञानिक,सामाजिक,ग्रामीण विकास हेतु दिया गया दान
A65: 33 | B65: राहत धारा 89 के अन्तर्गत
A66: 34 | B66: वेतन बिल के अलावा जमा कराया गया आयकर (TDS)
A67: 35 | B67: धारा 10(14) के अन्तर्गत भत्ते जो करमुक्त है
A68: 36 | B68: धारा 80G धर्मार्थ संस्थाओं आदि को दिये दान (क श्रेणी 100% एवं ख श्रेणी 50%)

Sheet Master
A1: Office of the Principal DIET Kuchaman City (Nagaur)
A2: आयकर गणना प्रपत्र 2021-22
A4: Employee Name | B4: Ashwini Kumar Sharma | C4: Post | D4: Lecturer | E4: Cader | F4: State Service
A5: Are you in Probation | B5: No | C5: PAY-Level | D5: L-12 | E5: Employee ID | F5: RJNA201228008021
A6: PAN NO. | B6: AAAA9456A | C6: SI No. | D6: 123456 | E6: GPF/PRAN No. | F6: 1234567891011
A7: Bank Account No. | B7: 123456789101112 | C7: Mobile No. | D7: 9166023711 | E7: March 2021 Basic | F7: 52300.00
A8: HRA Rate | B8: 8% | C8: SIP (Monthly Amount) | D8: 3000.00 | E8: SI Loan (Monthly Amount) | F8: 0.00
A9: GPF (Monthly Amount) | B9: 5100.00 | C9: GPF Loan (Monthly Amount) | D9: 0.00 | E9: Are You NPS Employee | F9: Yes
A10: Washing All. Monthly | B10: 0.00 | C10: Handi. All. Monthly | D10: 0.00 | E10: CCA (Monthly Amount) | F10: 0.00
A11: बोनस मिला या नहीं | B11: Yes | C11: बोनस कितने माह का | D11: 12 | E11: 60-80 वर्ग | F11: No
A12: समर्पित 21-22 उठाया या नहीं | B12: No | C12: समर्पित 20-21 कौनसे माह में उठाया | E12: TAN No. | F12: ABCD1234E
A13: क्या आपने RGHS की कटौती विकल्प लिया है (For NPS) | B13: YES | C13: GIS Slab | D13: 220 | E13: LIC Amount

Sheet GA 55 Editable
B1: =Master!A1 -> Office of the Principal DIET Kuchaman City (Nagaur)
B2: Salary and Deduction Detail for FY : 2021-22
B4: नाम कर्मचारी- | C4: =IF(Master!B4=0,0,Master!B4) -> Ashwini Kumar Sharma | G4: पद- | H4: =IF(Master!D4=0,0,Master!D4) -> Lecturer | K4: लेवल- | L4: =IF(Master!D5=0,0,Master!D5) -> L-12 | N4: Employee ID- | P4: =IF(Master!F5=0,0,Master!F5) -> RJNA201228008021 | T4: मार्च का बेसिक- | W4: =IF(Master!F7=0,0,Master!F7) -> 52300.00 | Y4: TAN No. | Z4: =IF(Master!F12=0,0,Master!F12) -> ABCD1234E
B5: पैन नं.- | C5: =IF(Master!B6=0,0,Master!B6) -> AAAA9456A | G5: Mobile- | H5: =IF(Master!D7=0,0,Master!D7) -> 9166023711 | K5: SI No.- | L5: =IF(Master!D6=0,0,Master!D6) -> 123456 | N5: GPF/PRAN No.- | P5: =IF(Master!F6=0,0,Master!F6) -> 1234567891011 | T5: बैंक खाता सं.- | W5: =IF(Master!B7=0,0,Master!B7) -> 123456789101112
B6: Month & Year | C6: Basic Pay | D6: DA | E6: HRA | F6: Washing Allow. | G6: Handicaped Allowance | H6: CCA Allowance | I6: Other Allowance | J6: Gross Salary | K6: SIP | L6: GPF | M6: NPS | N6: GPF Loan | O6: RPMF | P6: SI Arrear | Q6: SI Loan | R6: GIS | S6: LIC | T6: COVIS-19 | U6: GPF 2004 | V6: Hitkari Nidhi | W6: Other | X6: ITAX | Y6: Total Deduction | Z6: NET Payment | AA6: Bill No./ Dte
A7: 3 | B7: 2021-03-01 | C7: =IF(Master!F7=0,0,Master!F7) -> 52,300 | D7: =IF(Master!$B$5="Yes",0,IF(C7=0,0,ROUND(C7*17%,0))) -> 8,891 | E7: =IF(Master!$B$8="NA",0,IF(Master!$B$8=8%,ROUND(0.08*C7,0),ROUND(0.16*C7,0))) -> 4,184 | F7: =IF(Master!$B$10=0,0,Master!$B$10) -> 0 | G7: =IF(Master!$D$10=0,0,Master!$D$10) -> 0 | H7: =IF(Master!$F$10=0,0,Master!$F$10) -> 0 | J7: =SUM(C7:I7) -> 65,375 | K7: =IF(Master!D8=0,0,Master!D8) -> 3,000 | L7: =IF(Master!$F$9="YES",0,IF(Master!$B$9=0,0,Master!$B$9)) -> 0 | M7: =IF(Master!$F$9="YES",ROUND((C7+D7)*0.1,0),0) -> 6,119 | N7: =IF(Master!$D$9=0,0,Master!$D$9) -> 0 | O7: =IF(Master!$F$9="No",IF(C7<18001,265,IF(C7<33501,440,IF(C7<54001,658,875))),0) -> 0 | Q7: =IF(Master!$F$8=0,0,Master!$F$8) -> 0 | S7: =IF(Master!$F$13=0,0,Master!$F$13) -> 0 | Y7: =SUM(K7:X7) -> 9,119 | Z7: =J7-Y7 -> 56,256
A8: 4 | B8: 2021-04-01 | C8: =C7 -> 52,300 | D8: =IF(Master!$B$5="Yes",0,IF(C8=0,0,ROUND(C8*17%,0))) -> 8,891 | E8: =IF(Master!$B$8="NA",0,IF(Master!$B$8=8%,ROUND(0.08*C8,0),ROUND(0.16*C8,0))) -> 4,184 | F8: =F7 -> 0 | G8: =G7 -> 0 | H8: =H7 -> 0 | J8: 65,375 | K8: =K7 -> 3,000 | L8: =L7 -> 0 | M8: =IF(Master!$F$9="YES",ROUND((C8+D8)*0.1,0),0) -> 6,119 | N8: =N7 -> 0 | O8: =IF(Master!$F$9="No",IF(C8<18001,265,IF(C8<33501,440,IF(C8<54001,658,875))),0) -> 0 | Q8: =Q7 -> 0 | R8: =IF(Master!D13="",0,Master!D13) -> 220 | S8: =S7 -> 0 | X8: =X7 -> 0 | Y8: =SUM(K8:X8) -> 9,339 | Z8: =J8-Y8 -> 56,036
A9: 5 | B9: 2021-05-01 | C9: =C8 -> 52,300 | D9: =IF(Master!$B$5="Yes",0,IF(C9=0,0,ROUND(C9*17%,0))) -> 8,891 | E9: =IF(Master!$B$8="NA",0,IF(Master!$B$8=8%,ROUND(0.08*C9,0),ROUND(0.16*C9,0))) -> 4,184 | F9: =F8 -> 0 | G9: =G8 -> 0 | H9: =H8 -> 0 | J9: 65,375 | K9: =K8 -> 3,000 | L9: =L8 -> 0 | M9: =IF(Master!$F$9="YES",ROUND((C9+D9)*0.1,0),0) -> 6,119 | N9: =N8 -> 0 | O9: =IF(Master!$F$9="No",IF(C9<18001,265,IF(C9<33501,440,IF(C9<54001,658,875))),0) -> 0 | Q9: =Q8 -> 0 | S9: =S8 -> 0 | X9: =X8 -> 0 | Y9: 9,119 | Z9: 56,256
A10: 6 | B10: 2021-06-01 | C10: =C9 -> 52,300 | D10: =IF(Master!$B$5="Yes",0,IF(C10=0,0,ROUND(C10*17%,0))) -> 8,891 | E10: =IF(Master!$B$8="NA",0,IF(Master!$B$8=8%,ROUND(0.08*C10,0),ROUND(0.16*C10,0))) -> 4,184 | F10: 0 | G10: 0 | H10: 0 | J10: 65,375 | K10: 3,000 | L10: 0 | M10: =IF(Master!$F$9="YES",ROUND((C10+D10)*0.1,0),0) -> 6,119 | N10: 0 | O10: =IF(Master!$F$9="No",IF(C10<18001,265,IF(C10<33501,440,IF(C10<54001,658,875))),0) -> 0 | Q10: 0 | S10: 0 | X10: 0 | Y10: 9,119 | Z10: 56,256
A11: 7 | B11: 2021-07-01 | C11: =IF(Master!B5="Yes",C10,MROUND(ROUND(1.03*C10,0),100)) -> 53,900 | D11: =IF(Master!$B$5="Yes",0,IF(C11=0,0,ROUND(C11*28%,0))) -> 15,092 | E11: =IF(Master!$B$8="NA",0,IF(Master!$B$8=8%,ROUND(0.08*C11,0),ROUND(0.16*C11,0))) -> 4,312 | F11: 0 | G11: 0 | H11: 0 | J11: 73,304 | K11: 3,000 | L11: 0 | M11: =IF(Master!$F$9="YES",ROUND((C11+D11)*0.1,0),0) -> 6,899 | N11: 0 | O11: =IF(Master!$F$9="No",IF(C11<18001,265,IF(C11<33501,440,IF(C11<54001,658,875))),IF(Master!$B$13="NO",0,IF(C11<18001,135,IF(C11<33501,220,IF(C11<54001,330,440))))) -> 330 | Q11: 0 | S11: 0 | X11: 0 | Y11: 10,229 | Z11: 63,075
A12: 8 | B12: 2021-08-01 | C12: =C11 -> 53,900 | D12: =IF(Master!$B$5="Yes",0,IF(C12=0,0,ROUND(C12*28%,0))) -> 15,092 | E12: =IF(Master!$B$8="NA",0,IF(Master!$B$8=8%,ROUND(0.09*C12,0),ROUND(0.18*C12,0))) -> 4,851 | F12: 0 | G12: 0 | H12: 0 | J12: 73,843 | K12: 3,000 | L12: 0 | M12: =IF(Master!$F$9="YES",ROUND((C12+D12)*0.1,0),0) -> 6,899 | N12: 0 | O12: =IF(Master!$F$9="No",IF(C12<18001,265,IF(C12<33501,440,IF(C12<54001,658,875))),IF(Master!$B$13="NO",0,IF(C12<18001,135,IF(C12<33501,220,IF(C12<54001,330,440))))) -> 330 | Q12: 0 | S12: 0 | X12: 0 | Y12: 10,229 | Z12: 63,614
A13: 9 | B13: 2021-09-01 | C13: 53,900 | D13: =IF(Master!$B$5="Yes",0,IF(C13=0,0,ROUND(C13*28%,0))) -> 15,092 | E13: =IF(Master!$B$8="NA",0,IF(Master!$B$8=8%,ROUND(0.09*C13,0),ROUND(0.18*C13,0))) -> 4,851 | F13: 0 | G13: 0 | H13: 0 | J13: 73,843 | K13: 3,000 | L13: 0 | M13: =IF(Master!$F$9="YES",ROUND((C13+D13)*0.1,0),0) -> 6,899 | N13: 0 | O13: =IF(Master!$F$9="No",IF(C13<18001,265,IF(C13<33501,440,IF(C13<54001,658,875))),IF(Master!$B$13="NO",0,IF(C13<18001,135,IF(C13<33501,220,IF(C13<54001,330,440))))) -> 330 | Q13: 0 | S13: 0 | X13: 0 | Y13: 10,229 | Z13: 63,614
A14: 10 | B14: 2021-10-01 | C14: 53,900 | D14: =IF(Master!$B$5="Yes",0,IF(C14=0,0,ROUND(C14*31%,0))) -> 16,709 | E14: =IF(Master!$B$8="NA",0,IF(Master!$B$8=8%,ROUND(0.09*C14,0),ROUND(0.18*C14,0))) -> 4,851 | F14: 0 | G14: 0 | H14: 0 | J14: 75,460 | K14: 3,000 | L14: 0 | M14: =IF(Master!$F$9="YES",ROUND((C14+D14)*0.1,0),0) -> 7,061 | N14: 0 | O14: =IF(Master!$F$9="No",IF(C14<18001,265,IF(C14<33501,440,IF(C14<54001,658,875))),IF(Master!$B$13="NO",0,IF(C14<18001,135,IF(C14<33501,220,IF(C14<54001,330,440))))) -> 330 | Q14: 0 | S14: 0 | X14: 0 | Y14: 10,391 | Z14: 65,069 | AC14: =$C$11*3% -> 1617 | AD14: =ROUND($AC$14*10%,0) -> 162 | AE14: =$AC$14-$AD$14 -> 1455
A15: 11 | B15: 2021-11-01 | C15: 53,900 | D15: =IF(Master!$B$5="Yes",0,IF(C15=0,0,ROUND(C15*31%,0))) -> 16,709 | E15: =IF(Master!$B$8="NA",0,IF(Master!$B$8=8%,ROUND(0.09*C15,0),ROUND(0.18*C15,0))) -> 4,851 | F15: 0 | G15: 0 | H15: 0 | J15: 75,460 | K15: 3,000 | L15: 0 | M15: =IF(Master!$F$9="YES",ROUND((C15+D15)*0.1,0),0) -> 7,061 | N15: 0 | O15: =IF(Master!$F$9="No",IF(C15<18001,265,IF(C15<33501,440,IF(C15<54001,658,875))),IF(Master!$B$13="NO",0,IF(C15<18001,135,IF(C15<33501,220,IF(C15<54001,330,440))))) -> 330 | Q15: 0 | S15: 0 | X15: 0 | Y15: 10,391 | Z15: 65,069 | AC15: =$C$12*3% -> 1617 | AD15: =ROUND($AC$14*10%,0) -> 162 | AE15: =$AC$15-$AD$15 -> 1455
A16: 12 | B16: 2021-12-01 | C16: 53,900 | D16: =IF(Master!$B$5="Yes",0,IF(C16=0,0,ROUND(C16*31%,0))) -> 16,709 | E16: =IF(Master!$B$8="NA",0,IF(Master!$B$8=8%,ROUND(0.09*C16,0),ROUND(0.18*C16,0))) -> 4,851 | F16: 0 | G16: 0 | H16: 0 | J16: 75,460 | K16: 3,000 | L16: 0 | M16: =IF(Master!$F$9="YES",ROUND((C16+D16)*0.1,0),0) -> 7,061 | N16: 0 | O16: =IF(Master!$F$9="No",IF(C16<18001,265,IF(C16<33501,440,IF(C16<54001,658,875))),IF(Master!$B$13="NO",0,IF(C16<18001,135,IF(C16<33501,220,IF(C16<54001,330,440))))) -> 330 | Q16: 0 | S16: 0 | V16: =IF(Master!F4="State Service",500,250) -> 500 | X16: 0 | Y16: 10,891 | Z16: 64,569 | AC16: =$C$13*3% -> 1617 | AD16: 162 | AE16: =$AC$16-$AD$16 -> 1455
A17: 1 | B17: 2022-01-01 | C17: 53,900 | D17: =IF(Master!$B$5="Yes",0,IF(C17=0,0,ROUND(C17*31%,0))) -> 16,709 | E17: =IF(Master!$B$8="NA",0,IF(Master!$B$8=8%,ROUND(0.09*C17,0),ROUND(0.18*C17,0))) -> 4,851 | F17: 0 | G17: 0 | H17: 0 | J17: 75,460 | K17: 3,000 | L17: 0 | M17: =IF(Master!$F$9="YES",ROUND((C17+D17)*0.1,0),0) -> 7,061 | N17: 0 | O17: =IF(Master!$F$9="No",IF(C17<18001,265,IF(C17<33501,440,IF(C17<54001,658,875))),IF(Master!$B$13="NO",0,IF(C17<18001,135,IF(C17<33501,220,IF(C17<54001,330,440))))) -> 330 | Q17: 0 | S17: 0 | X17: 0 | Y17: 10,391 | Z17: 65,069
A18: 2 | B18: 2022-02-01 | C18: 53,900 | D18: =IF(Master!$B$5="Yes",0,IF(C18=0,0,ROUND(C18*31%,0))) -> 16,709 | E18: =IF(Master!$B$8="NA",0,IF(Master!$B$8=8%,ROUND(0.09*C18,0),ROUND(0.18*C18,0))) -> 4,851 | F18: 0 | G18: 0 | H18: 0 | J18: 75,460 | K18: 3,000 | L18: 0 | M18: =IF(Master!$F$9="YES",ROUND((C18+D18)*0.1,0),0) -> 7,061 | N18: 0 | O18: =IF(Master!$F$9="No",IF(C18<18001,265,IF(C18<33501,440,IF(C18<54001,658,875))),IF(Master!$B$13="NO",0,IF(C18<18001,135,IF(C18<33501,220,IF(C18<54001,330,440))))) -> 330 | Q18: 0 | S18: 0 | X18: 0 | Y18: 10,391 | Z18: 65,069 | AC18: =SUM($AC$14:$AC$16) -> 4851 | AD18: =SUM($AD$14:$AD$16) -> 486 | AE18: =SUM($AE$14:$AE$16) -> 4365
B19: HRA Arrear July 2021 | E19: =IF(Master!$B$8="NA",0,IF(Master!$B$8=8%,ROUND(1%*C11,0),ROUND(2%*C11,0))) -> 539 | J19: 539 | L19: =IF(IF(Master!$F$9="Yes",0,IF(Master!$F$9="No",$D$19,0))=0,0,IF(Master!$F$9="Yes",0,IF(Master!$F$9="No",$D$19,0))) -> 0 | Y19: 0 | Z19: 539
B20: Bonus | C20: =IF(ROUND(IF(Master!$B$11="YES",6774/12*Master!$D$11,0),0)=0,0,ROUND(IF(Master!$B$11="YES",6774/12*Master!$D$11,0),0)) -> 6,774 | J20: 6,774 | L20: =IF(IFERROR(IF(Master!$F$9="Yes",0,IF(Master!$F$9="No",ROUND($C$20*50%,0),0)),0)=0,0,IFERROR(IF(Master!$F$9="Yes",0,IF(Master!$F$9="No",ROUND($C$20*50%,0),0)),0)) -> 0 | U20: =IFERROR(IF(IF(Master!$F$9="No",0,ROUND($C$20*50%,0))=0,0,IF(Master!$F$9="No",0,ROUND($C$20*50%,0))),0) -> 3,387 | Y20: 3,387 | Z20: 3,387
B21: Surrender | C21: =IF(Master!B12="NO",0,IF(Master!D12="NA",0,IF(Master!D12=3,C18/2,VLOOKUP(Master!D12,$A$7:$C$18,3,FALSE)/2))) -> 0 | D21: =IF(OR(Master!D12=1,Master!D12=2,Master!D12=10,Master!D12=11,Master!D12=12),ROUND(C21*31%,0),IF(AND(Master!D12>3,Master!D12<7),ROUND(C21*17%,0),ROUND(C21*28%,0))) -> 0 | J21: 0 | Y21: 0 | Z21: 0
B22: DA Arrear | D22: =ROUND(C11*3%,0)*3 -> 4,851 | J22: =SUM(C22:I22) -> 4,851 | L22: =IF(Master!F9="NO",ROUND(C11*3%,0)*3,0) -> 0 | M22: =IF(Master!$F$9="YES",AD18,0) -> 486 | U22: =IF(Master!F9="Yes",D22-M22,0) -> 4,365 | Y22: 4,851 | Z22: 0
B23: Fixation Arrear | J23: 0 | M23: =IF(Master!$F$9="YES",ROUND((C23+D23)*0.1,0),0) -> 0 | Y23: 0 | Z23: 0
B24: March Due Salary | J24: 0 | M24: =IF(Master!$F$9="YES",ROUND((C24+D24)*0.1,0),0) -> 0 | Y24: 0 | Z24: 0
B25: Salary Arrear1 | J25: 0 | M25: =IF(Master!$F$9="YES",ROUND((C25+D25)*0.1,0),0) -> 0 | Y25: 0 | Z25: 0
B26: Salary Arrear2 | J26: 0 | M26: =IF(Master!$F$9="YES",ROUND((C26+D26)*0.1,0),0) -> 0 | Y26: 0 | Z26: 0
B27: Other | J27: 0 | M27: =IF(Master!$F$9="YES",ROUND((C27+D27)*0.1,0),0) -> 0 | Y27: =SUM(K27:X27) -> 0 | Z27: =J27-Y27 -> 0
B28: Total | C28: =SUM(C7:C27) -> 647,174 | D28: =SUM(D7:D27) -> 169,236 | E28: 55,544 | F28: 0 | G28: 0 | H28: 0 | I28: 0 | J28: 871,954 | K28: 36,000 | L28: 0 | M28: 80,964 | N28: 0 | O28: 2,640 | P28: 0 | Q28: 0 | R28: 220 | S28: 0 | T28: 0 | U28: 7,752 | V28: 500 | W28: 0 | X28: 0 | Y28: 128,076 | Z28: 743,878 | AA28: 0
B31: Signature Of Employee | Y31: Signature Of DDO

Sheet Other Ded.
A1: Deductions other than Salry
A2: =Master!B4&", "&Master!D4 -> Ashwini Kumar Sharma, Lecturer
A3: 1 | B3: मकान किराया भत्ता ( छूट जो लेनी है) YES/NO | C3: NO | D3: =IF(C3="Yes",'GA 55 For Print'!E28,0) -> 0 | E3: 19 | F3: Defferred Annuty (स्थगित वार्षिकी)
A4: 2 | B4: गृह सम्पति से प्राप्त किराया - आय | E4: 20 | F4: मनोरंजन भता धारा 16 (II) के अन्तर्गत | K4: =SUM(D19,G6) -> 0
A5: 3 | B5: गृहकर | E5: 21 | F5: व्यवयाय कर धारा 16 (III) के अन्तगर्त | K5: =SUM(G7,D19) -> 0
A6: 4 | B6: सरकारी पेंशन योजना में कर्मचारी का अंशदान अधिकतम वेतन का 10% धारा 80 CCD(1) | D6: =IF(J6>0,J6,0) -> 80,964 | E6: 22 | F6: एफडी आदि अन्य जमा राशि पर प्राप्त कुल ब्याज (पीपीएफ को छोड़कर) | J6: =IF(K6>L6,L6,K6) -> 80964 | K6: =IF(Master!$F$9="No",0,ROUND(10%*'GA 55 For Print'!$J$28,0)) -> 87195 | L6: =IF(Master!$F$9="No",0,'GA 55 For Print'!$M$28) -> 80964
A7: 5 | B7: Covid - 19 (धारा 80G) | E7: 23 | F7: अन्य विभिन्न स्त्रो़त्र (ब्याज के अलावा) से कुल आय | K7: =SUM('Tax Calculaton Old'!F21:F30,'Tax Calculaton Old'!L21:L28) -> 124936.00 | L7: =IF(Master!$F$9="No",50000,IF(M7>50000,50000,M7)) -> 0 | M7: =IF(K7>150000,K7-150000,0) -> 0
A8: 6 | B8: गृह ऋण किस्त मूल (जो वेतन से नहीं काटा गया) | E8: 24 | F8: धारा 80 सी के अन्तर्गत अन्य मद में जमा करायी गयी राशि | J8: =IF(Master!$F$11="No",25000,50000) -> 25000
A9: 7 | B9: गृह ऋण किस्त ब्याज (जो वेतन से नहीं काटा गया) | E9: 25 | F9: धारा 80 CCC पेंशन प्लान हेतु अंशदान (एन.पी.एस. के अलावा)
A10: 8 | B10: LIC जीवन बीमा प्रीमियम (जो वेतन से नही काटा गया) | E10: 26 | F10: धारा 80CCD (1B) नवीन पेंशन योजना में अतिरिक्त अंशदान (अधिकतम रू. 50,000) | G10: 0 | J10: =IF(Master!$F$11="No",40000,100000) -> 40000
A11: 9 | B11: PLI (पी.एल.आई.) | E11: 27 | F11: धारा 80D चिकित्सा बीमा प्रीमियम (सामान्य 25000, वरिष्ठ नागरिक 50000) | G11: =IF(Master!F9="Yes",SUM('GA 55 For Print'!O11:O18),SUM('GA 55 For Print'!O11:O18)) -> 2,640 | J11: =SUM('GA 55 For Print'!C7:C18,'GA 55 For Print'!D7:D18) -> 804,785
A12: 10 | B12: टयूशन फीस | E12: 28 | F12: धारा 80DD विकलांग आश्रितों के चिकित्सा उपचार(अधिकतम 75000, 80% विकलांगता 125000) | J12: ='GA 55 For Print'!E28 -> 55,544
A13: 11 | B13: PPF (लोक भविष्य निधि) | E13: 29 | F13: धारा 80DDB विशिष्ट रोगों के उपचार हेतु कटौती (सामान्य 40000, वरिष्ठ नागरिक 1 लाख)
A14: 12 | B14: सुकन्या समृद्धि योजना | E14: 30 | F14: धारा 80E उच्च शिक्षा हेतु लिए ऋण का ब्याज
A15: 13 | B15: यू. एल. आई. पी./वार्षिक प्लान | E15: 31 | F15: धारा 80U स्थाई शारीरिक विकलांगता (अधिकतम 75000ए 80% विकलांगता 125000)
A16: 14 | B16: NSS (राष्ट्रीय बचत स्कीम) | E16: 32 | F16: धारा 80GGA अनुमोदित वैज्ञानिक,सामाजिक,ग्रामीण विकास हेतु दिया गया दान
A17: 15 | B17: NSC (राष्ट्रीय बचत पत्र) | E17: 33 | F17: राहत धारा 89 के अन्तर्गत
A18: 16 | B18: राष्ट्रीय बचत पत्र पर ब्याज | E18: 34 | F18: वेतन बिल के अलावा जमा कराया गया आयकर (TDS)
A19: 17 | B19: बचत खाते की जमा राशि पर प्राप्त ब्याज | E19: 35 | F19: धारा 10(14) के अन्तर्गत भत्ते जो करमुक्त है
A20: 18 | B20: इक्विटी लिंक सेविंग स्कीम | E20: 36 | F20: धारा 80G धर्मार्थ संस्थाओं आदि को दिये दान (क श्रेणी 100% एवं ख श्रेणी 50%)

Sheet Summary
A1: =Master!A1 -> Office of the Principal DIET Kuchaman City (Nagaur)
A3: Name Of Employee | B3: =Master!B4 -> Ashwini Kumar Sharma
A5: Gross Pay | B5: Taxable Amt | C5: Tax Deposit | D5: Rebate Under Section 80C, 80CCC, 80CCD(1) | E5: मकान किराया छूट के लिए रसीद की आवश्यकता
A6: ='Tax Calculaton Old'!$M$4 -> 952918.00 | B6: ='Tax Calculaton Old'!M48 -> 694380.00 | C6: ='Tax Calculaton Old'!M63 -> 0.00 | D6: ='Tax Calculaton Old'!M31 -> 124936.00 | E6: =IF('Other Ded.'!D3=0,0,ROUND(0.1*'Other Ded.'!J11,0)+'Other Ded.'!D3) -> 0.00
A8: TAX Position (Old Tax Scheme) | C8: ='Tax Calculaton Old'!A64&" = "&'Tax Calculaton Old'!M64 -> Income Tax Payable = 53431
A9: TAX Position (New Tax Scheme) | C9: ='Tax Calculaton New'!A56&" = "&'Tax Calculaton New'!M56 -> Income Tax Payable = 58025
A10: Total Rebate Under Section 80C, 80CCC, 80CCD(1) | C10: ='Tax Calculaton Old'!M31 -> 124936.00
A11: Investable Amount | C11: =150000-C10 -> 25064.00

Sheet GA 55 For Print
B1: =Master!A1 -> Office of the Principal DIET Kuchaman City (Nagaur)
B2: Salary and Deduction Detail for FY : 2021-22
B4: नाम कर्मचारी- | C4: =IF('GA 55 Editable'!C4="","",'GA 55 Editable'!C4) -> Ashwini Kumar Sharma | G4: पद- | H4: =IF('GA 55 Editable'!H4="","",'GA 55 Editable'!H4) -> Lecturer | K4: लेवल- | L4: =IF('GA 55 Editable'!L4="","",'GA 55 Editable'!L4) -> L-12 | N4: Employee ID- | P4: =IF('GA 55 Editable'!P4="","",'GA 55 Editable'!P4) -> RJNA201228008021 | T4: मार्च का बेसिक- | W4: =IF('GA 55 Editable'!W4="","",'GA 55 Editable'!W4) -> 52300.00 | Y4: TAN No. | Z4: =IF('GA 55 Editable'!Z4="","",'GA 55 Editable'!Z4) -> ABCD1234E
B5: पैन नं.- | C5: =IF('GA 55 Editable'!C5="","",'GA 55 Editable'!C5:F5) -> AAAA9456A | G5: Mobile- | H5: =IF('GA 55 Editable'!H5="","",'GA 55 Editable'!H5) -> 9166023711 | K5: SI No.- | L5: =IF('GA 55 Editable'!L5="","",'GA 55 Editable'!L5) -> 123456 | N5: GPF/PRAN No.- | P5: =IF('GA 55 Editable'!P5="","",'GA 55 Editable'!P5) -> 1234567891011 | T5: बैंक खाता सं.- | W5: =IF('GA 55 Editable'!W5="","",'GA 55 Editable'!W5) -> 123456789101112
B6: Month & Year | C6: Basic Pay | D6: DA | E6: HRA | F6: Washing Allow. | G6: Handicaped Allowance | H6: CCA Allowance | I6: Other Allowance | J6: Gross Salary | K6: SIP | L6: GPF | M6: NPS | N6: GPF Loan | O6: RPMF | P6: SI Arrear | Q6: SI Loan | R6: GIS | S6: LIC | T6: COVIS-19 | U6: GPF 2004 | V6: Hitkari Nidhi | W6: Other | X6: ITAX | Y6: Total Deduction | Z6: NET Payment | AA6: Bill No./ Dte
A7: 3 | B7: 2021-03-01 | C7: =IF('GA 55 Editable'!C7="","",'GA 55 Editable'!C7) -> 52,300 | D7: =IF('GA 55 Editable'!D7="","",'GA 55 Editable'!D7) -> 8,891 | E7: =IF('GA 55 Editable'!E7="","",'GA 55 Editable'!E7) -> 4,184 | F7: =IF('GA 55 Editable'!F7="","",'GA 55 Editable'!F7) -> 0 | G7: =IF('GA 55 Editable'!G7="","",'GA 55 Editable'!G7) -> 0 | H7: =IF('GA 55 Editable'!H7="","",'GA 55 Editable'!H7) -> 0 | I7: =IF('GA 55 Editable'!I7="","",'GA 55 Editable'!I7) ->  | J7: =IF('GA 55 Editable'!J7="","",'GA 55 Editable'!J7) -> 65,375 | K7: =IF('GA 55 Editable'!K7="","",'GA 55 Editable'!K7) -> 3,000 | L7: =IF('GA 55 Editable'!L7="","",'GA 55 Editable'!L7) -> 0 | M7: =IF('GA 55 Editable'!M7="","",'GA 55 Editable'!M7) -> 6,119 | N7: =IF('GA 55 Editable'!N7="","",'GA 55 Editable'!N7) -> 0 | O7: =IF('GA 55 Editable'!O7="","",'GA 55 Editable'!O7) -> 0 | P7: =IF('GA 55 Editable'!P7="","",'GA 55 Editable'!P7) ->  | Q7: =IF('GA 55 Editable'!Q7="","",'GA 55 Editable'!Q7) -> 0 | R7: =IF('GA 55 Editable'!R7="","",'GA 55 Editable'!R7) ->  | S7: =IF('GA 55 Editable'!S7="","",'GA 55 Editable'!S7) -> 0 | T7: =IF('GA 55 Editable'!T7="","",'GA 55 Editable'!T7) ->  | U7: =IF('GA 55 Editable'!U7="","",'GA 55 Editable'!U7) ->  | V7: =IF('GA 55 Editable'!V7="","",'GA 55 Editable'!V7) ->  | W7: =IF('GA 55 Editable'!W7="","",'GA 55 Editable'!W7) ->  | X7: =IF('GA 55 Editable'!X7="","",'GA 55 Editable'!X7) ->  | Y7: =IF('GA 55 Editable'!Y7="","",'GA 55 Editable'!Y7) -> 9,119 | Z7: =IF('GA 55 Editable'!Z7="","",'GA 55 Editable'!Z7) -> 56,256 | AA7: =IF('GA 55 Editable'!AA7="","",'GA 55 Editable'!AA7) -> 
A8: 4 | B8: 2021-04-01 | C8: =IF('GA 55 Editable'!C8="","",'GA 55 Editable'!C8) -> 52,300 | D8: =IF('GA 55 Editable'!D8="","",'GA 55 Editable'!D8) -> 8,891 | E8: =IF('GA 55 Editable'!E8="","",'GA 55 Editable'!E8) -> 4,184 | F8: =IF('GA 55 Editable'!F8="","",'GA 55 Editable'!F8) -> 0 | G8: =IF('GA 55 Editable'!G8="","",'GA 55 Editable'!G8) -> 0 | H8: =IF('GA 55 Editable'!H8="","",'GA 55 Editable'!H8) -> 0 | I8: =IF('GA 55 Editable'!I8="","",'GA 55 Editable'!I8) ->  | J8: =IF('GA 55 Editable'!J8="","",'GA 55 Editable'!J8) -> 65,375 | K8: =IF('GA 55 Editable'!K8="","",'GA 55 Editable'!K8) -> 3,000 | L8: =IF('GA 55 Editable'!L8="","",'GA 55 Editable'!L8) -> 0 | M8: =IF('GA 55 Editable'!M8="","",'GA 55 Editable'!M8) -> 6,119 | N8: =IF('GA 55 Editable'!N8="","",'GA 55 Editable'!N8) -> 0 | O8: =IF('GA 55 Editable'!O8="","",'GA 55 Editable'!O8) -> 0 | P8: =IF('GA 55 Editable'!P8="","",'GA 55 Editable'!P8) ->  | Q8: =IF('GA 55 Editable'!Q8="","",'GA 55 Editable'!Q8) -> 0 | R8: =IF('GA 55 Editable'!R8="","",'GA 55 Editable'!R8) -> 220 | S8: =IF('GA 55 Editable'!S8="","",'GA 55 Editable'!S8) -> 0 | T8: =IF('GA 55 Editable'!T8="","",'GA 55 Editable'!T8) ->  | U8: =IF('GA 55 Editable'!U8="","",'GA 55 Editable'!U8) ->  | V8: =IF('GA 55 Editable'!V8="","",'GA 55 Editable'!V8) ->  | W8: =IF('GA 55 Editable'!W8="","",'GA 55 Editable'!W8) ->  | X8: =IF('GA 55 Editable'!X8="","",'GA 55 Editable'!X8) -> 0 | Y8: =IF('GA 55 Editable'!Y8="","",'GA 55 Editable'!Y8) -> 9,339 | Z8: =IF('GA 55 Editable'!Z8="","",'GA 55 Editable'!Z8) -> 56,036 | AA8: =IF('GA 55 Editable'!AA8="","",'GA 55 Editable'!AA8) -> 
A9: 5 | B9: 2021-05-01 | C9: =IF('GA 55 Editable'!C9="","",'GA 55 Editable'!C9) -> 52,300 | D9: =IF('GA 55 Editable'!D9="","",'GA 55 Editable'!D9) -> 8,891 | E9: =IF('GA 55 Editable'!E9="","",'GA 55 Editable'!E9) -> 4,184 | F9: =IF('GA 55 Editable'!F9="","",'GA 55 Editable'!F9) -> 0 | G9: =IF('GA 55 Editable'!G9="","",'GA 55 Editable'!G9) -> 0 | H9: =IF('GA 55 Editable'!H9="","",'GA 55 Editable'!H9) -> 0 | I9: =IF('GA 55 Editable'!I9="","",'GA 55 Editable'!I9) ->  | J9: =IF('GA 55 Editable'!J9="","",'GA 55 Editable'!J9) -> 65,375 | K9: =IF('GA 55 Editable'!K9="","",'GA 55 Editable'!K9) -> 3,000 | L9: =IF('GA 55 Editable'!L9="","",'GA 55 Editable'!L9) -> 0 | M9: =IF('GA 55 Editable'!M9="","",'GA 55 Editable'!M9) -> 6,119 | N9: =IF('GA 55 Editable'!N9="","",'GA 55 Editable'!N9) -> 0 | O9: =IF('GA 55 Editable'!O9="","",'GA 55 Editable'!O9) -> 0 | P9: =IF('GA 55 Editable'!P9="","",'GA 55 Editable'!P9) ->  | Q9: =IF('GA 55 Editable'!Q9="","",'GA 55 Editable'!Q9) -> 0 | R9: =IF('GA 55 Editable'!R9="","",'GA 55 Editable'!R9) ->  | S9: =IF('GA 55 Editable'!S9="","",'GA 55 Editable'!S9) -> 0 | T9: =IF('GA 55 Editable'!T9="","",'GA 55 Editable'!T9) ->  | U9: =IF('GA 55 Editable'!U9="","",'GA 55 Editable'!U9) ->  | V9: =IF('GA 55 Editable'!V9="","",'GA 55 Editable'!V9) ->  | W9: =IF('GA 55 Editable'!W9="","",'GA 55 Editable'!W9) ->  | X9: =IF('GA 55 Editable'!X9="","",'GA 55 Editable'!X9) -> 0 | Y9: =IF('GA 55 Editable'!Y9="","",'GA 55 Editable'!Y9) -> 9,119 | Z9: =IF('GA 55 Editable'!Z9="","",'GA 55 Editable'!Z9) -> 56,256 | AA9: =IF('GA 55 Editable'!AA9="","",'GA 55 Editable'!AA9) -> 
A10: 6 | B10: 2021-06-01 | C10: =IF('GA 55 Editable'!C10="","",'GA 55 Editable'!C10) -> 52,300 | D10: =IF('GA 55 Editable'!D10="","",'GA 55 Editable'!D10) -> 8,891 | E10: =IF('GA 55 Editable'!E10="","",'GA 55 Editable'!E10) -> 4,184 | F10: =IF('GA 55 Editable'!F10="","",'GA 55 Editable'!F10) -> 0 | G10: =IF('GA 55 Editable'!G10="","",'GA 55 Editable'!G10) -> 0 | H10: =IF('GA 55 Editable'!H10="","",'GA 55 Editable'!H10) -> 0 | I10: =IF('GA 55 Editable'!I10="","",'GA 55 Editable'!I10) ->  | J10: =IF('GA 55 Editable'!J10="","",'GA 55 Editable'!J10) -> 65,375 | K10: =IF('GA 55 Editable'!K10="","",'GA 55 Editable'!K10) -> 3,000 | L10: =IF('GA 55 Editable'!L10="","",'GA 55 Editable'!L10) -> 0 | M10: =IF('GA 55 Editable'!M10="","",'GA 55 Editable'!M10) -> 6,119 | N10: =IF('GA 55 Editable'!N10="","",'GA 55 Editable'!N10) -> 0 | O10: =IF('GA 55 Editable'!O10="","",'GA 55 Editable'!O10) -> 0 | P10: =IF('GA 55 Editable'!P10="","",'GA 55 Editable'!P10) ->  | Q10: =IF('GA 55 Editable'!Q10="","",'GA 55 Editable'!Q10) -> 0 | R10: =IF('GA 55 Editable'!R10="","",'GA 55 Editable'!R10) ->  | S10: =IF('GA 55 Editable'!S10="","",'GA 55 Editable'!S10) -> 0 | T10: =IF('GA 55 Editable'!T10="","",'GA 55 Editable'!T10) ->  | U10: =IF('GA 55 Editable'!U10="","",'GA 55 Editable'!U10) ->  | V10: =IF('GA 55 Editable'!V10="","",'GA 55 Editable'!V10) ->  | W10: =IF('GA 55 Editable'!W10="","",'GA 55 Editable'!W10) ->  | X10: =IF('GA 55 Editable'!X10="","",'GA 55 Editable'!X10) -> 0 | Y10: =IF('GA 55 Editable'!Y10="","",'GA 55 Editable'!Y10) -> 9,119 | Z10: =IF('GA 55 Editable'!Z10="","",'GA 55 Editable'!Z10) -> 56,256 | AA10: =IF('GA 55 Editable'!AA10="","",'GA 55 Editable'!AA10) -> 
A11: 7 | B11: 2021-07-01 | C11: =IF('GA 55 Editable'!C11="","",'GA 55 Editable'!C11) -> 53,900 | D11: =IF('GA 55 Editable'!D11="","",'GA 55 Editable'!D11) -> 15,092 | E11: =IF('GA 55 Editable'!E11="","",'GA 55 Editable'!E11) -> 4,312 | F11: =IF('GA 55 Editable'!F11="","",'GA 55 Editable'!F11) -> 0 | G11: =IF('GA 55 Editable'!G11="","",'GA 55 Editable'!G11) -> 0 | H11: =IF('GA 55 Editable'!H11="","",'GA 55 Editable'!H11) -> 0 | I11: =IF('GA 55 Editable'!I11="","",'GA 55 Editable'!I11) ->  | J11: =IF('GA 55 Editable'!J11="","",'GA 55 Editable'!J11) -> 73,304 | K11: =IF('GA 55 Editable'!K11="","",'GA 55 Editable'!K11) -> 3,000 | L11: =IF('GA 55 Editable'!L11="","",'GA 55 Editable'!L11) -> 0 | M11: =IF('GA 55 Editable'!M11="","",'GA 55 Editable'!M11) -> 6,899 | N11: =IF('GA 55 Editable'!N11="","",'GA 55 Editable'!N11) -> 0 | O11: =IF('GA 55 Editable'!O11="","",'GA 55 Editable'!O11) -> 330 | P11: =IF('GA 55 Editable'!P11="","",'GA 55 Editable'!P11) ->  | Q11: =IF('GA 55 Editable'!Q11="","",'GA 55 Editable'!Q11) -> 0 | R11: =IF('GA 55 Editable'!R11="","",'GA 55 Editable'!R11) ->  | S11: =IF('GA 55 Editable'!S11="","",'GA 55 Editable'!S11) -> 0 | T11: =IF('GA 55 Editable'!T11="","",'GA 55 Editable'!T11) ->  | U11: =IF('GA 55 Editable'!U11="","",'GA 55 Editable'!U11) ->  | V11: =IF('GA 55 Editable'!V11="","",'GA 55 Editable'!V11) ->  | W11: =IF('GA 55 Editable'!W11="","",'GA 55 Editable'!W11) ->  | X11: =IF('GA 55 Editable'!X11="","",'GA 55 Editable'!X11) -> 0 | Y11: =IF('GA 55 Editable'!Y11="","",'GA 55 Editable'!Y11) -> 10,229 | Z11: =IF('GA 55 Editable'!Z11="","",'GA 55 Editable'!Z11) -> 63,075 | AA11: =IF('GA 55 Editable'!AA11="","",'GA 55 Editable'!AA11) -> 
A12: 8 | B12: 2021-08-01 | C12: =IF('GA 55 Editable'!C12="","",'GA 55 Editable'!C12) -> 53,900 | D12: =IF('GA 55 Editable'!D12="","",'GA 55 Editable'!D12) -> 15,092 | E12: =IF('GA 55 Editable'!E12="","",'GA 55 Editable'!E12) -> 4,851 | F12: =IF('GA 55 Editable'!F12="","",'GA 55 Editable'!F12) -> 0 | G12: =IF('GA 55 Editable'!G12="","",'GA 55 Editable'!G12) -> 0 | H12: =IF('GA 55 Editable'!H12="","",'GA 55 Editable'!H12) -> 0 | I12: =IF('GA 55 Editable'!I12="","",'GA 55 Editable'!I12) ->  | J12: =IF('GA 55 Editable'!J12="","",'GA 55 Editable'!J12) -> 73,843 | K12: =IF('GA 55 Editable'!K12="","",'GA 55 Editable'!K12) -> 3,000 | L12: =IF('GA 55 Editable'!L12="","",'GA 55 Editable'!L12) -> 0 | M12: =IF('GA 55 Editable'!M12="","",'GA 55 Editable'!M12) -> 6,899 | N12: =IF('GA 55 Editable'!N12="","",'GA 55 Editable'!N12) -> 0 | O12: =IF('GA 55 Editable'!O12="","",'GA 55 Editable'!O12) -> 330 | P12: =IF('GA 55 Editable'!P12="","",'GA 55 Editable'!P12) ->  | Q12: =IF('GA 55 Editable'!Q12="","",'GA 55 Editable'!Q12) -> 0 | R12: =IF('GA 55 Editable'!R12="","",'GA 55 Editable'!R12) ->  | S12: =IF('GA 55 Editable'!S12="","",'GA 55 Editable'!S12) -> 0 | T12: =IF('GA 55 Editable'!T12="","",'GA 55 Editable'!T12) ->  | U12: =IF('GA 55 Editable'!U12="","",'GA 55 Editable'!U12) ->  | V12: =IF('GA 55 Editable'!V12="","",'GA 55 Editable'!V12) ->  | W12: =IF('GA 55 Editable'!W12="","",'GA 55 Editable'!W12) ->  | X12: =IF('GA 55 Editable'!X12="","",'GA 55 Editable'!X12) -> 0 | Y12: =IF('GA 55 Editable'!Y12="","",'GA 55 Editable'!Y12) -> 10,229 | Z12: =IF('GA 55 Editable'!Z12="","",'GA 55 Editable'!Z12) -> 63,614 | AA12: =IF('GA 55 Editable'!AA12="","",'GA 55 Editable'!AA12) -> 
A13: 9 | B13: 2021-09-01 | C13: =IF('GA 55 Editable'!C13="","",'GA 55 Editable'!C13) -> 53,900 | D13: =IF('GA 55 Editable'!D13="","",'GA 55 Editable'!D13) -> 15,092 | E13: =IF('GA 55 Editable'!E13="","",'GA 55 Editable'!E13) -> 4,851 | F13: =IF('GA 55 Editable'!F13="","",'GA 55 Editable'!F13) -> 0 | G13: =IF('GA 55 Editable'!G13="","",'GA 55 Editable'!G13) -> 0 | H13: =IF('GA 55 Editable'!H13="","",'GA 55 Editable'!H13) -> 0 | I13: =IF('GA 55 Editable'!I13="","",'GA 55 Editable'!I13) ->  | J13: =IF('GA 55 Editable'!J13="","",'GA 55 Editable'!J13) -> 73,843 | K13: =IF('GA 55 Editable'!K13="","",'GA 55 Editable'!K13) -> 3,000 | L13: =IF('GA 55 Editable'!L13="","",'GA 55 Editable'!L13) -> 0 | M13: =IF('GA 55 Editable'!M13="","",'GA 55 Editable'!M13) -> 6,899 | N13: =IF('GA 55 Editable'!N13="","",'GA 55 Editable'!N13) -> 0 | O13: =IF('GA 55 Editable'!O13="","",'GA 55 Editable'!O13) -> 330 | P13: =IF('GA 55 Editable'!P13="","",'GA 55 Editable'!P13) ->  | Q13: =IF('GA 55 Editable'!Q13="","",'GA 55 Editable'!Q13) -> 0 | R13: =IF('GA 55 Editable'!R13="","",'GA 55 Editable'!R13) ->  | S13: =IF('GA 55 Editable'!S13="","",'GA 55 Editable'!S13) -> 0 | T13: =IF('GA 55 Editable'!T13="","",'GA 55 Editable'!T13) ->  | U13: =IF('GA 55 Editable'!U13="","",'GA 55 Editable'!U13) ->  | V13: =IF('GA 55 Editable'!V13="","",'GA 55 Editable'!V13) ->  | W13: =IF('GA 55 Editable'!W13="","",'GA 55 Editable'!W13) ->  | X13: =IF('GA 55 Editable'!X13="","",'GA 55 Editable'!X13) -> 0 | Y13: =IF('GA 55 Editable'!Y13="","",'GA 55 Editable'!Y13) -> 10,229 | Z13: =IF('GA 55 Editable'!Z13="","",'GA 55 Editable'!Z13) -> 63,614 | AA13: =IF('GA 55 Editable'!AA13="","",'GA 55 Editable'!AA13) -> 
A14: 10 | B14: 2021-10-01 | C14: =IF('GA 55 Editable'!C14="","",'GA 55 Editable'!C14) -> 53,900 | D14: =IF('GA 55 Editable'!D14="","",'GA 55 Editable'!D14) -> 16,709 | E14: =IF('GA 55 Editable'!E14="","",'GA 55 Editable'!E14) -> 4,851 | F14: =IF('GA 55 Editable'!F14="","",'GA 55 Editable'!F14) -> 0 | G14: =IF('GA 55 Editable'!G14="","",'GA 55 Editable'!G14) -> 0 | H14: =IF('GA 55 Editable'!H14="","",'GA 55 Editable'!H14) -> 0 | I14: =IF('GA 55 Editable'!I14="","",'GA 55 Editable'!I14) ->  | J14: =IF('GA 55 Editable'!J14="","",'GA 55 Editable'!J14) -> 75,460 | K14: =IF('GA 55 Editable'!K14="","",'GA 55 Editable'!K14) -> 3,000 | L14: =IF('GA 55 Editable'!L14="","",'GA 55 Editable'!L14) -> 0 | M14: =IF('GA 55 Editable'!M14="","",'GA 55 Editable'!M14) -> 7,061 | N14: =IF('GA 55 Editable'!N14="","",'GA 55 Editable'!N14) -> 0 | O14: =IF('GA 55 Editable'!O14="","",'GA 55 Editable'!O14) -> 330 | P14: =IF('GA 55 Editable'!P14="","",'GA 55 Editable'!P14) ->  | Q14: =IF('GA 55 Editable'!Q14="","",'GA 55 Editable'!Q14) -> 0 | R14: =IF('GA 55 Editable'!R14="","",'GA 55 Editable'!R14) ->  | S14: =IF('GA 55 Editable'!S14="","",'GA 55 Editable'!S14) -> 0 | T14: =IF('GA 55 Editable'!T14="","",'GA 55 Editable'!T14) ->  | U14: =IF('GA 55 Editable'!U14="","",'GA 55 Editable'!U14) ->  | V14: =IF('GA 55 Editable'!V14="","",'GA 55 Editable'!V14) ->  | W14: =IF('GA 55 Editable'!W14="","",'GA 55 Editable'!W14) ->  | X14: =IF('GA 55 Editable'!X14="","",'GA 55 Editable'!X14) -> 0 | Y14: =IF('GA 55 Editable'!Y14="","",'GA 55 Editable'!Y14) -> 10,391 | Z14: =IF('GA 55 Editable'!Z14="","",'GA 55 Editable'!Z14) -> 65,069 | AA14: =IF('GA 55 Editable'!AA14="","",'GA 55 Editable'!AA14) -> 
A15: 11 | B15: 2021-11-01 | C15: =IF('GA 55 Editable'!C15="","",'GA 55 Editable'!C15) -> 53,900 | D15: =IF('GA 55 Editable'!D15="","",'GA 55 Editable'!D15) -> 16,709 | E15: =IF('GA 55 Editable'!E15="","",'GA 55 Editable'!E15) -> 4,851 | F15: =IF('GA 55 Editable'!F15="","",'GA 55 Editable'!F15) -> 0 | G15: =IF('GA 55 Editable'!G15="","",'GA 55 Editable'!G15) -> 0 | H15: =IF('GA 55 Editable'!H15="","",'GA 55 Editable'!H15) -> 0 | I15: =IF('GA 55 Editable'!I15="","",'GA 55 Editable'!I15) ->  | J15: =IF('GA 55 Editable'!J15="","",'GA 55 Editable'!J15) -> 75,460 | K15: =IF('GA 55 Editable'!K15="","",'GA 55 Editable'!K15) -> 3,000 | L15: =IF('GA 55 Editable'!L15="","",'GA 55 Editable'!L15) -> 0 | M15: =IF('GA 55 Editable'!M15="","",'GA 55 Editable'!M15) -> 7,061 | N15: =IF('GA 55 Editable'!N15="","",'GA 55 Editable'!N15) -> 0 | O15: =IF('GA 55 Editable'!O15="","",'GA 55 Editable'!O15) -> 330 | P15: =IF('GA 55 Editable'!P15="","",'GA 55 Editable'!P15) ->  | Q15: =IF('GA 55 Editable'!Q15="","",'GA 55 Editable'!Q15) -> 0 | R15: =IF('GA 55 Editable'!R15="","",'GA 55 Editable'!R15) ->  | S15: =IF('GA 55 Editable'!S15="","",'GA 55 Editable'!S15) -> 0 | T15: =IF('GA 55 Editable'!T15="","",'GA 55 Editable'!T15) ->  | U15: =IF('GA 55 Editable'!U15="","",'GA 55 Editable'!U15) ->  | V15: =IF('GA 55 Editable'!V15="","",'GA 55 Editable'!V15) ->  | W15: =IF('GA 55 Editable'!W15="","",'GA 55 Editable'!W15) ->  | X15: =IF('GA 55 Editable'!X15="","",'GA 55 Editable'!X15) -> 0 | Y15: =IF('GA 55 Editable'!Y15="","",'GA 55 Editable'!Y15) -> 10,391 | Z15: =IF('GA 55 Editable'!Z15="","",'GA 55 Editable'!Z15) -> 65,069 | AA15: =IF('GA 55 Editable'!AA15="","",'GA 55 Editable'!AA15) -> 
A16: 12 | B16: 2021-12-01 | C16: =IF('GA 55 Editable'!C16="","",'GA 55 Editable'!C16) -> 53,900 | D16: =IF('GA 55 Editable'!D16="","",'GA 55 Editable'!D16) -> 16,709 | E16: =IF('GA 55 Editable'!E16="","",'GA 55 Editable'!E16) -> 4,851 | F16: =IF('GA 55 Editable'!F16="","",'GA 55 Editable'!F16) -> 0 | G16: =IF('GA 55 Editable'!G16="","",'GA 55 Editable'!G16) -> 0 | H16: =IF('GA 55 Editable'!H16="","",'GA 55 Editable'!H16) -> 0 | I16: =IF('GA 55 Editable'!I16="","",'GA 55 Editable'!I16) ->  | J16: =IF('GA 55 Editable'!J16="","",'GA 55 Editable'!J16) -> 75,460 | K16: =IF('GA 55 Editable'!K16="","",'GA 55 Editable'!K16) -> 3,000 | L16: =IF('GA 55 Editable'!L16="","",'GA 55 Editable'!L16) -> 0 | M16: =IF('GA 55 Editable'!M16="","",'GA 55 Editable'!M16) -> 7,061 | N16: =IF('GA 55 Editable'!N16="","",'GA 55 Editable'!N16) -> 0 | O16: =IF('GA 55 Editable'!O16="","",'GA 55 Editable'!O16) -> 330 | P16: =IF('GA 55 Editable'!P16="","",'GA 55 Editable'!P16) ->  | Q16: =IF('GA 55 Editable'!Q16="","",'GA 55 Editable'!Q16) -> 0 | R16: =IF('GA 55 Editable'!R16="","",'GA 55 Editable'!R16) ->  | S16: =IF('GA 55 Editable'!S16="","",'GA 55 Editable'!S16) -> 0 | T16: =IF('GA 55 Editable'!T16="","",'GA 55 Editable'!T16) ->  | U16: =IF('GA 55 Editable'!U16="","",'GA 55 Editable'!U16) ->  | V16: =IF('GA 55 Editable'!V16="","",'GA 55 Editable'!V16) -> 500 | W16: =IF('GA 55 Editable'!W16="","",'GA 55 Editable'!W16) ->  | X16: =IF('GA 55 Editable'!X16="","",'GA 55 Editable'!X16) -> 0 | Y16: =IF('GA 55 Editable'!Y16="","",'GA 55 Editable'!Y16) -> 10,891 | Z16: =IF('GA 55 Editable'!Z16="","",'GA 55 Editable'!Z16) -> 64,569 | AA16: =IF('GA 55 Editable'!AA16="","",'GA 55 Editable'!AA16) -> 
A17: 1 | B17: 2022-01-01 | C17: =IF('GA 55 Editable'!C17="","",'GA 55 Editable'!C17) -> 53,900 | D17: =IF('GA 55 Editable'!D17="","",'GA 55 Editable'!D17) -> 16,709 | E17: =IF('GA 55 Editable'!E17="","",'GA 55 Editable'!E17) -> 4,851 | F17: =IF('GA 55 Editable'!F17="","",'GA 55 Editable'!F17) -> 0 | G17: =IF('GA 55 Editable'!G17="","",'GA 55 Editable'!G17) -> 0 | H17: =IF('GA 55 Editable'!H17="","",'GA 55 Editable'!H17) -> 0 | I17: =IF('GA 55 Editable'!I17="","",'GA 55 Editable'!I17) ->  | J17: =IF('GA 55 Editable'!J17="","",'GA 55 Editable'!J17) -> 75,460 | K17: =IF('GA 55 Editable'!K17="","",'GA 55 Editable'!K17) -> 3,000 | L17: =IF('GA 55 Editable'!L17="","",'GA 55 Editable'!L17) -> 0 | M17: =IF('GA 55 Editable'!M17="","",'GA 55 Editable'!M17) -> 7,061 | N17: =IF('GA 55 Editable'!N17="","",'GA 55 Editable'!N17) -> 0 | O17: =IF('GA 55 Editable'!O17="","",'GA 55 Editable'!O17) -> 330 | P17: =IF('GA 55 Editable'!P17="","",'GA 55 Editable'!P17) ->  | Q17: =IF('GA 55 Editable'!Q17="","",'GA 55 Editable'!Q17) -> 0 | R17: =IF('GA 55 Editable'!R17="","",'GA 55 Editable'!R17) ->  | S17: =IF('GA 55 Editable'!S17="","",'GA 55 Editable'!S17) -> 0 | T17: =IF('GA 55 Editable'!T17="","",'GA 55 Editable'!T17) ->  | U17: =IF('GA 55 Editable'!U17="","",'GA 55 Editable'!U17) ->  | V17: =IF('GA 55 Editable'!V17="","",'GA 55 Editable'!V17) ->  | W17: =IF('GA 55 Editable'!W17="","",'GA 55 Editable'!W17) ->  | X17: =IF('GA 55 Editable'!X17="","",'GA 55 Editable'!X17) -> 0 | Y17: =IF('GA 55 Editable'!Y17="","",'GA 55 Editable'!Y17) -> 10,391 | Z17: =IF('GA 55 Editable'!Z17="","",'GA 55 Editable'!Z17) -> 65,069 | AA17: =IF('GA 55 Editable'!AA17="","",'GA 55 Editable'!AA17) -> 
A18: 2 | B18: 2022-02-01 | C18: =IF('GA 55 Editable'!C18="","",'GA 55 Editable'!C18) -> 53,900 | D18: =IF('GA 55 Editable'!D18="","",'GA 55 Editable'!D18) -> 16,709 | E18: =IF('GA 55 Editable'!E18="","",'GA 55 Editable'!E18) -> 4,851 | F18: =IF('GA 55 Editable'!F18="","",'GA 55 Editable'!F18) -> 0 | G18: =IF('GA 55 Editable'!G18="","",'GA 55 Editable'!G18) -> 0 | H18: =IF('GA 55 Editable'!H18="","",'GA 55 Editable'!H18) -> 0 | I18: =IF('GA 55 Editable'!I18="","",'GA 55 Editable'!I18) ->  | J18: =IF('GA 55 Editable'!J18="","",'GA 55 Editable'!J18) -> 75,460 | K18: =IF('GA 55 Editable'!K18="","",'GA 55 Editable'!K18) -> 3,000 | L18: =IF('GA 55 Editable'!L18="","",'GA 55 Editable'!L18) -> 0 | M18: =IF('GA 55 Editable'!M18="","",'GA 55 Editable'!M18) -> 7,061 | N18: =IF('GA 55 Editable'!N18="","",'GA 55 Editable'!N18) -> 0 | O18: =IF('GA 55 Editable'!O18="","",'GA 55 Editable'!O18) -> 330 | P18: =IF('GA 55 Editable'!P18="","",'GA 55 Editable'!P18) ->  | Q18: =IF('GA 55 Editable'!Q18="","",'GA 55 Editable'!Q18) -> 0 | R18: =IF('GA 55 Editable'!R18="","",'GA 55 Editable'!R18) ->  | S18: =IF('GA 55 Editable'!S18="","",'GA 55 Editable'!S18) -> 0 | T18: =IF('GA 55 Editable'!T18="","",'GA 55 Editable'!T18) ->  | U18: =IF('GA 55 Editable'!U18="","",'GA 55 Editable'!U18) ->  | V18: =IF('GA 55 Editable'!V18="","",'GA 55 Editable'!V18) ->  | W18: =IF('GA 55 Editable'!W18="","",'GA 55 Editable'!W18) ->  | X18: =IF('GA 55 Editable'!X18="","",'GA 55 Editable'!X18) -> 0 | Y18: =IF('GA 55 Editable'!Y18="","",'GA 55 Editable'!Y18) -> 10,391 | Z18: =IF('GA 55 Editable'!Z18="","",'GA 55 Editable'!Z18) -> 65,069 | AA18: =IF('GA 55 Editable'!AA18="","",'GA 55 Editable'!AA18) -> 
B19: HRA Arrear July 2021 | C19: =IF('GA 55 Editable'!C19="","",'GA 55 Editable'!C19) ->  | D19: =IF('GA 55 Editable'!D19="","",'GA 55 Editable'!D19) ->  | E19: =IF('GA 55 Editable'!E19="","",'GA 55 Editable'!E19) -> 539 | F19: =IF('GA 55 Editable'!F19="","",'GA 55 Editable'!F19) ->  | G19: =IF('GA 55 Editable'!G19="","",'GA 55 Editable'!G19) ->  | H19: =IF('GA 55 Editable'!H19="","",'GA 55 Editable'!H19) ->  | I19: =IF('GA 55 Editable'!I19="","",'GA 55 Editable'!I19) ->  | J19: =IF('GA 55 Editable'!J19="","",'GA 55 Editable'!J19) -> 539 | K19: =IF('GA 55 Editable'!K19="","",'GA 55 Editable'!K19) ->  | L19: =IF('GA 55 Editable'!L19="","",'GA 55 Editable'!L19) -> 0 | M19: =IF('GA 55 Editable'!M19="","",'GA 55 Editable'!M19) ->  | N19: =IF('GA 55 Editable'!N19="","",'GA 55 Editable'!N19) ->  | O19: =IF('GA 55 Editable'!O19="","",'GA 55 Editable'!O19) ->  | P19: =IF('GA 55 Editable'!P19="","",'GA 55 Editable'!P19) ->  | Q19: =IF('GA 55 Editable'!Q19="","",'GA 55 Editable'!Q19) ->  | R19: =IF('GA 55 Editable'!R19="","",'GA 55 Editable'!R19) ->  | S19: =IF('GA 55 Editable'!S19="","",'GA 55 Editable'!S19) ->  | T19: =IF('GA 55 Editable'!T19="","",'GA 55 Editable'!T19) ->  | U19: =IF('GA 55 Editable'!U19="","",'GA 55 Editable'!U19) ->  | V19: =IF('GA 55 Editable'!V19="","",'GA 55 Editable'!V19) ->  | W19: =IF('GA 55 Editable'!W19="","",'GA 55 Editable'!W19) ->  | X19: =IF('GA 55 Editable'!X19="","",'GA 55 Editable'!X19) ->  | Y19: =IF('GA 55 Editable'!Y19="","",'GA 55 Editable'!Y19) -> 0 | Z19: =IF('GA 55 Editable'!Z19="","",'GA 55 Editable'!Z19) -> 539 | AA19: =IF('GA 55 Editable'!AA19="","",'GA 55 Editable'!AA19) -> 
B20: Bonus | C20: =IF('GA 55 Editable'!C20="","",'GA 55 Editable'!C20) -> 6,774 | D20: =IF('GA 55 Editable'!D20="","",'GA 55 Editable'!D20) ->  | E20: =IF('GA 55 Editable'!E20="","",'GA 55 Editable'!E20) ->  | F20: =IF('GA 55 Editable'!F20="","",'GA 55 Editable'!F20) ->  | G20: =IF('GA 55 Editable'!G20="","",'GA 55 Editable'!G20) ->  | H20: =IF('GA 55 Editable'!H20="","",'GA 55 Editable'!H20) ->  | I20: =IF('GA 55 Editable'!I20="","",'GA 55 Editable'!I20) ->  | J20: =IF('GA 55 Editable'!J20="","",'GA 55 Editable'!J20) -> 6,774 | K20: =IF('GA 55 Editable'!K20="","",'GA 55 Editable'!K20) ->  | L20: =IF('GA 55 Editable'!L20="","",'GA 55 Editable'!L20) -> 0 | M20: =IF('GA 55 Editable'!M20="","",'GA 55 Editable'!M20) ->  | N20: =IF('GA 55 Editable'!N20="","",'GA 55 Editable'!N20) ->  | O20: =IF('GA 55 Editable'!O20="","",'GA 55 Editable'!O20) ->  | P20: =IF('GA 55 Editable'!P20="","",'GA 55 Editable'!P20) ->  | Q20: =IF('GA 55 Editable'!Q20="","",'GA 55 Editable'!Q20) ->  | R20: =IF('GA 55 Editable'!R20="","",'GA 55 Editable'!R20) ->  | S20: =IF('GA 55 Editable'!S20="","",'GA 55 Editable'!S20) ->  | T20: =IF('GA 55 Editable'!T20="","",'GA 55 Editable'!T20) ->  | U20: =IF('GA 55 Editable'!U20="","",'GA 55 Editable'!U20) -> 3,387 | V20: =IF('GA 55 Editable'!V20="","",'GA 55 Editable'!V20) ->  | W20: =IF('GA 55 Editable'!W20="","",'GA 55 Editable'!W20) ->  | X20: =IF('GA 55 Editable'!X20="","",'GA 55 Editable'!X20) ->  | Y20: =IF('GA 55 Editable'!Y20="","",'GA 55 Editable'!Y20) -> 3,387 | Z20: =IF('GA 55 Editable'!Z20="","",'GA 55 Editable'!Z20) -> 3,387 | AA20: =IF('GA 55 Editable'!AA20="","",'GA 55 Editable'!AA20) -> 
B21: Surrender | C21: =IF('GA 55 Editable'!C21="","",'GA 55 Editable'!C21) -> 0 | D21: =IF('GA 55 Editable'!D21="","",'GA 55 Editable'!D21) -> 0 | E21: =IF('GA 55 Editable'!E21="","",'GA 55 Editable'!E21) ->  | F21: =IF('GA 55 Editable'!F21="","",'GA 55 Editable'!F21) ->  | G21: =IF('GA 55 Editable'!G21="","",'GA 55 Editable'!G21) ->  | H21: =IF('GA 55 Editable'!H21="","",'GA 55 Editable'!H21) ->  | I21: =IF('GA 55 Editable'!I21="","",'GA 55 Editable'!I21) ->  | J21: =IF('GA 55 Editable'!J21="","",'GA 55 Editable'!J21) -> 0 | K21: =IF('GA 55 Editable'!K21="","",'GA 55 Editable'!K21) ->  | L21: =IF('GA 55 Editable'!L21="","",'GA 55 Editable'!L21) ->  | M21: =IF('GA 55 Editable'!M21="","",'GA 55 Editable'!M21) ->  | N21: =IF('GA 55 Editable'!N21="","",'GA 55 Editable'!N21) ->  | O21: =IF('GA 55 Editable'!O21="","",'GA 55 Editable'!O21) ->  | P21: =IF('GA 55 Editable'!P21="","",'GA 55 Editable'!P21) ->  | Q21: =IF('GA 55 Editable'!Q21="","",'GA 55 Editable'!Q21) ->  | R21: =IF('GA 55 Editable'!R21="","",'GA 55 Editable'!R21) ->  | S21: =IF('GA 55 Editable'!S21="","",'GA 55 Editable'!S21) ->  | T21: =IF('GA 55 Editable'!T21="","",'GA 55 Editable'!T21) ->  | U21: =IF('GA 55 Editable'!U21="","",'GA 55 Editable'!U21) ->  | V21: =IF('GA 55 Editable'!V21="","",'GA 55 Editable'!V21) ->  | W21: =IF('GA 55 Editable'!W21="","",'GA 55 Editable'!W21) ->  | X21: =IF('GA 55 Editable'!X21="","",'GA 55 Editable'!X21) ->  | Y21: =IF('GA 55 Editable'!Y21="","",'GA 55 Editable'!Y21) -> 0 | Z21: =IF('GA 55 Editable'!Z21="","",'GA 55 Editable'!Z21) -> 0 | AA21: =IF('GA 55 Editable'!AA21="","",'GA 55 Editable'!AA21) -> 
B22: DA Arrear | C22: =IF('GA 55 Editable'!C22="","",'GA 55 Editable'!C22) ->  | D22: =IF('GA 55 Editable'!D22="","",'GA 55 Editable'!D22) -> 4,851 | E22: =IF('GA 55 Editable'!E22="","",'GA 55 Editable'!E22) ->  | F22: =IF('GA 55 Editable'!F22="","",'GA 55 Editable'!F22) ->  | G22: =IF('GA 55 Editable'!G22="","",'GA 55 Editable'!G22) ->  | H22: =IF('GA 55 Editable'!H22="","",'GA 55 Editable'!H22) ->  | I22: =IF('GA 55 Editable'!I22="","",'GA 55 Editable'!I22) ->  | J22: =IF('GA 55 Editable'!J22="","",'GA 55 Editable'!J22) -> 4,851 | K22: =IF('GA 55 Editable'!K22="","",'GA 55 Editable'!K22) ->  | L22: =IF('GA 55 Editable'!L22="","",'GA 55 Editable'!L22) -> 0 | M22: =IF('GA 55 Editable'!M22="","",'GA 55 Editable'!M22) -> 486 | N22: =IF('GA 55 Editable'!N22="","",'GA 55 Editable'!N22) ->  | O22: =IF('GA 55 Editable'!O22="","",'GA 55 Editable'!O22) ->  | P22: =IF('GA 55 Editable'!P22="","",'GA 55 Editable'!P22) ->  | Q22: =IF('GA 55 Editable'!Q22="","",'GA 55 Editable'!Q22) ->  | R22: =IF('GA 55 Editable'!R22="","",'GA 55 Editable'!R22) ->  | S22: =IF('GA 55 Editable'!S22="","",'GA 55 Editable'!S22) ->  | T22: =IF('GA 55 Editable'!T22="","",'GA 55 Editable'!T22) ->  | U22: =IF('GA 55 Editable'!U22="","",'GA 55 Editable'!U22) -> 4,365 | V22: =IF('GA 55 Editable'!V22="","",'GA 55 Editable'!V22) ->  | W22: =IF('GA 55 Editable'!W22="","",'GA 55 Editable'!W22) ->  | X22: =IF('GA 55 Editable'!X22="","",'GA 55 Editable'!X22) ->  | Y22: =IF('GA 55 Editable'!Y22="","",'GA 55 Editable'!Y22) -> 4,851 | Z22: =IF('GA 55 Editable'!Z22="","",'GA 55 Editable'!Z22) -> 0 | AA22: =IF('GA 55 Editable'!AA22="","",'GA 55 Editable'!AA22) -> 
B23: Fixation Arrear | C23: =IF('GA 55 Editable'!C23="","",'GA 55 Editable'!C23) ->  | D23: =IF('GA 55 Editable'!D23="","",'GA 55 Editable'!D23) ->  | E23: =IF('GA 55 Editable'!E23="","",'GA 55 Editable'!E23) ->  | F23: =IF('GA 55 Editable'!F23="","",'GA 55 Editable'!F23) ->  | G23: =IF('GA 55 Editable'!G23="","",'GA 55 Editable'!G23) ->  | H23: =IF('GA 55 Editable'!H23="","",'GA 55 Editable'!H23) ->  | I23: =IF('GA 55 Editable'!I23="","",'GA 55 Editable'!I23) ->  | J23: =IF('GA 55 Editable'!J23="","",'GA 55 Editable'!J23) -> 0 | K23: =IF('GA 55 Editable'!K23="","",'GA 55 Editable'!K23) ->  | L23: =IF('GA 55 Editable'!L23="","",'GA 55 Editable'!L23) ->  | M23: =IF('GA 55 Editable'!M23="","",'GA 55 Editable'!M23) -> 0 | N23: =IF('GA 55 Editable'!N23="","",'GA 55 Editable'!N23) ->  | O23: =IF('GA 55 Editable'!O23="","",'GA 55 Editable'!O23) ->  | P23: =IF('GA 55 Editable'!P23="","",'GA 55 Editable'!P23) ->  | Q23: =IF('GA 55 Editable'!Q23="","",'GA 55 Editable'!Q23) ->  | R23: =IF('GA 55 Editable'!R23="","",'GA 55 Editable'!R23) ->  | S23: =IF('GA 55 Editable'!S23="","",'GA 55 Editable'!S23) ->  | T23: =IF('GA 55 Editable'!T23="","",'GA 55 Editable'!T23) ->  | U23: =IF('GA 55 Editable'!U23="","",'GA 55 Editable'!U23) ->  | V23: =IF('GA 55 Editable'!V23="","",'GA 55 Editable'!V23) ->  | W23: =IF('GA 55 Editable'!W23="","",'GA 55 Editable'!W23) ->  | X23: =IF('GA 55 Editable'!X23="","",'GA 55 Editable'!X23) ->  | Y23: =IF('GA 55 Editable'!Y23="","",'GA 55 Editable'!Y23) -> 0 | Z23: =IF('GA 55 Editable'!Z23="","",'GA 55 Editable'!Z23) -> 0 | AA23: =IF('GA 55 Editable'!AA23="","",'GA 55 Editable'!AA23) -> 
B24: March Due Salary | C24: =IF('GA 55 Editable'!C24="","",'GA 55 Editable'!C24) ->  | D24: =IF('GA 55 Editable'!D24="","",'GA 55 Editable'!D24) ->  | E24: =IF('GA 55 Editable'!E24="","",'GA 55 Editable'!E24) ->  | F24: =IF('GA 55 Editable'!F24="","",'GA 55 Editable'!F24) ->  | G24: =IF('GA 55 Editable'!G24="","",'GA 55 Editable'!G24) ->  | H24: =IF('GA 55 Editable'!H24="","",'GA 55 Editable'!H24) ->  | I24: =IF('GA 55 Editable'!I24="","",'GA 55 Editable'!I24) ->  | J24: =IF('GA 55 Editable'!J24="","",'GA 55 Editable'!J24) -> 0 | K24: =IF('GA 55 Editable'!K24="","",'GA 55 Editable'!K24) ->  | L24: =IF('GA 55 Editable'!L24="","",'GA 55 Editable'!L24) ->  | M24: =IF('GA 55 Editable'!M24="","",'GA 55 Editable'!M24) -> 0 | N24: =IF('GA 55 Editable'!N24="","",'GA 55 Editable'!N24) ->  | O24: =IF('GA 55 Editable'!O24="","",'GA 55 Editable'!O24) ->  | P24: =IF('GA 55 Editable'!P24="","",'GA 55 Editable'!P24) ->  | Q24: =IF('GA 55 Editable'!Q24="","",'GA 55 Editable'!Q24) ->  | R24: =IF('GA 55 Editable'!R24="","",'GA 55 Editable'!R24) ->  | S24: =IF('GA 55 Editable'!S24="","",'GA 55 Editable'!S24) ->  | T24: =IF('GA 55 Editable'!T24="","",'GA 55 Editable'!T24) ->  | U24: =IF('GA 55 Editable'!U24="","",'GA 55 Editable'!U24) ->  | V24: =IF('GA 55 Editable'!V24="","",'GA 55 Editable'!V24) ->  | W24: =IF('GA 55 Editable'!W24="","",'GA 55 Editable'!W24) ->  | X24: =IF('GA 55 Editable'!X24="","",'GA 55 Editable'!X24) ->  | Y24: =IF('GA 55 Editable'!Y24="","",'GA 55 Editable'!Y24) -> 0 | Z24: =IF('GA 55 Editable'!Z24="","",'GA 55 Editable'!Z24) -> 0 | AA24: =IF('GA 55 Editable'!AA24="","",'GA 55 Editable'!AA24) -> 
B25: Salary Arrear1 | C25: =IF('GA 55 Editable'!C25="","",'GA 55 Editable'!C25) ->  | D25: =IF('GA 55 Editable'!D25="","",'GA 55 Editable'!D25) ->  | E25: =IF('GA 55 Editable'!E25="","",'GA 55 Editable'!E25) ->  | F25: =IF('GA 55 Editable'!F25="","",'GA 55 Editable'!F25) ->  | G25: =IF('GA 55 Editable'!G25="","",'GA 55 Editable'!G25) ->  | H25: =IF('GA 55 Editable'!H25="","",'GA 55 Editable'!H25) ->  | I25: =IF('GA 55 Editable'!I25="","",'GA 55 Editable'!I25) ->  | J25: =IF('GA 55 Editable'!J25="","",'GA 55 Editable'!J25) -> 0 | K25: =IF('GA 55 Editable'!K25="","",'GA 55 Editable'!K25) ->  | L25: =IF('GA 55 Editable'!L25="","",'GA 55 Editable'!L25) ->  | M25: =IF('GA 55 Editable'!M25="","",'GA 55 Editable'!M25) -> 0 | N25: =IF('GA 55 Editable'!N25="","",'GA 55 Editable'!N25) ->  | O25: =IF('GA 55 Editable'!O25="","",'GA 55 Editable'!O25) ->  | P25: =IF('GA 55 Editable'!P25="","",'GA 55 Editable'!P25) ->  | Q25: =IF('GA 55 Editable'!Q25="","",'GA 55 Editable'!Q25) ->  | R25: =IF('GA 55 Editable'!R25="","",'GA 55 Editable'!R25) ->  | S25: =IF('GA 55 Editable'!S25="","",'GA 55 Editable'!S25) ->  | T25: =IF('GA 55 Editable'!T25="","",'GA 55 Editable'!T25) ->  | U25: =IF('GA 55 Editable'!U25="","",'GA 55 Editable'!U25) ->  | V25: =IF('GA 55 Editable'!V25="","",'GA 55 Editable'!V25) ->  | W25: =IF('GA 55 Editable'!W25="","",'GA 55 Editable'!W25) ->  | X25: =IF('GA 55 Editable'!X25="","",'GA 55 Editable'!X25) ->  | Y25: =IF('GA 55 Editable'!Y25="","",'GA 55 Editable'!Y25) -> 0 | Z25: =IF('GA 55 Editable'!Z25="","",'GA 55 Editable'!Z25) -> 0 | AA25: =IF('GA 55 Editable'!AA25="","",'GA 55 Editable'!AA25) -> 
B26: Salary Arrear2 | C26: =IF('GA 55 Editable'!C26="","",'GA 55 Editable'!C26) ->  | D26: =IF('GA 55 Editable'!D26="","",'GA 55 Editable'!D26) ->  | E26: =IF('GA 55 Editable'!E26="","",'GA 55 Editable'!E26) ->  | F26: =IF('GA 55 Editable'!F26="","",'GA 55 Editable'!F26) ->  | G26: =IF('GA 55 Editable'!G26="","",'GA 55 Editable'!G26) ->  | H26: =IF('GA 55 Editable'!H26="","",'GA 55 Editable'!H26) ->  | I26: =IF('GA 55 Editable'!I26="","",'GA 55 Editable'!I26) ->  | J26: =IF('GA 55 Editable'!J26="","",'GA 55 Editable'!J26) -> 0 | K26: =IF('GA 55 Editable'!K26="","",'GA 55 Editable'!K26) ->  | L26: =IF('GA 55 Editable'!L26="","",'GA 55 Editable'!L26) ->  | M26: =IF('GA 55 Editable'!M26="","",'GA 55 Editable'!M26) -> 0 | N26: =IF('GA 55 Editable'!N26="","",'GA 55 Editable'!N26) ->  | O26: =IF('GA 55 Editable'!O26="","",'GA 55 Editable'!O26) ->  | P26: =IF('GA 55 Editable'!P26="","",'GA 55 Editable'!P26) ->  | Q26: =IF('GA 55 Editable'!Q26="","",'GA 55 Editable'!Q26) ->  | R26: =IF('GA 55 Editable'!R26="","",'GA 55 Editable'!R26) ->  | S26: =IF('GA 55 Editable'!S26="","",'GA 55 Editable'!S26) ->  | T26: =IF('GA 55 Editable'!T26="","",'GA 55 Editable'!T26) ->  | U26: =IF('GA 55 Editable'!U26="","",'GA 55 Editable'!U26) ->  | V26: =IF('GA 55 Editable'!V26="","",'GA 55 Editable'!V26) ->  | W26: =IF('GA 55 Editable'!W26="","",'GA 55 Editable'!W26) ->  | X26: =IF('GA 55 Editable'!X26="","",'GA 55 Editable'!X26) ->  | Y26: =IF('GA 55 Editable'!Y26="","",'GA 55 Editable'!Y26) -> 0 | Z26: =IF('GA 55 Editable'!Z26="","",'GA 55 Editable'!Z26) -> 0 | AA26: =IF('GA 55 Editable'!AA26="","",'GA 55 Editable'!AA26) -> 
B27: Other | C27: =IF('GA 55 Editable'!C27="","",'GA 55 Editable'!C27) ->  | D27: =IF('GA 55 Editable'!D27="","",'GA 55 Editable'!D27) ->  | E27: =IF('GA 55 Editable'!E27="","",'GA 55 Editable'!E27) ->  | F27: =IF('GA 55 Editable'!F27="","",'GA 55 Editable'!F27) ->  | G27: =IF('GA 55 Editable'!G27="","",'GA 55 Editable'!G27) ->  | H27: =IF('GA 55 Editable'!H27="","",'GA 55 Editable'!H27) ->  | I27: =IF('GA 55 Editable'!I27="","",'GA 55 Editable'!I27) ->  | J27: =IF('GA 55 Editable'!J27="","",'GA 55 Editable'!J27) -> 0 | K27: =IF('GA 55 Editable'!K27="","",'GA 55 Editable'!K27) ->  | L27: =IF('GA 55 Editable'!L27="","",'GA 55 Editable'!L27) ->  | M27: =IF('GA 55 Editable'!M27="","",'GA 55 Editable'!M27) -> 0 | N27: =IF('GA 55 Editable'!N27="","",'GA 55 Editable'!N27) ->  | O27: =IF('GA 55 Editable'!O27="","",'GA 55 Editable'!O27) ->  | P27: =IF('GA 55 Editable'!P27="","",'GA 55 Editable'!P27) ->  | Q27: =IF('GA 55 Editable'!Q27="","",'GA 55 Editable'!Q27) ->  | R27: =IF('GA 55 Editable'!R27="","",'GA 55 Editable'!R27) ->  | S27: =IF('GA 55 Editable'!S27="","",'GA 55 Editable'!S27) ->  | T27: =IF('GA 55 Editable'!T27="","",'GA 55 Editable'!T27) ->  | U27: =IF('GA 55 Editable'!U27="","",'GA 55 Editable'!U27) ->  | V27: =IF('GA 55 Editable'!V27="","",'GA 55 Editable'!V27) ->  | W27: =IF('GA 55 Editable'!W27="","",'GA 55 Editable'!W27) ->  | X27: =IF('GA 55 Editable'!X27="","",'GA 55 Editable'!X27) ->  | Y27: =IF('GA 55 Editable'!Y27="","",'GA 55 Editable'!Y27) -> 0 | Z27: =IF('GA 55 Editable'!Z27="","",'GA 55 Editable'!Z27) -> 0 | AA27: =IF('GA 55 Editable'!AA27="","",'GA 55 Editable'!AA27) -> 
B28: Total | C28: =IF('GA 55 Editable'!C28="","",'GA 55 Editable'!C28) -> 647,174 | D28: =IF('GA 55 Editable'!D28="","",'GA 55 Editable'!D28) -> 169,236 | E28: =IF('GA 55 Editable'!E28="","",'GA 55 Editable'!E28) -> 55,544 | F28: =IF('GA 55 Editable'!F28="","",'GA 55 Editable'!F28) -> 0 | G28: =IF('GA 55 Editable'!G28="","",'GA 55 Editable'!G28) -> 0 | H28: =IF('GA 55 Editable'!H28="","",'GA 55 Editable'!H28) -> 0 | I28: =IF('GA 55 Editable'!I28="","",'GA 55 Editable'!I28) -> 0 | J28: =IF('GA 55 Editable'!J28="","",'GA 55 Editable'!J28) -> 871,954 | K28: =IF('GA 55 Editable'!K28="","",'GA 55 Editable'!K28) -> 36,000 | L28: =IF('GA 55 Editable'!L28="","",'GA 55 Editable'!L28) -> 0 | M28: =IF('GA 55 Editable'!M28="","",'GA 55 Editable'!M28) -> 80,964 | N28: =IF('GA 55 Editable'!N28="","",'GA 55 Editable'!N28) -> 0 | O28: =IF('GA 55 Editable'!O28="","",'GA 55 Editable'!O28) -> 2,640 | P28: =IF('GA 55 Editable'!P28="","",'GA 55 Editable'!P28) -> 0 | Q28: =IF('GA 55 Editable'!Q28="","",'GA 55 Editable'!Q28) -> 0 | R28: =IF('GA 55 Editable'!R28="","",'GA 55 Editable'!R28) -> 220 | S28: =IF('GA 55 Editable'!S28="","",'GA 55 Editable'!S28) -> 0 | T28: =IF('GA 55 Editable'!T28="","",'GA 55 Editable'!T28) -> 0 | U28: =IF('GA 55 Editable'!U28="","",'GA 55 Editable'!U28) -> 7,752 | V28: =IF('GA 55 Editable'!V28="","",'GA 55 Editable'!V28) -> 500 | W28: =IF('GA 55 Editable'!W28="","",'GA 55 Editable'!W28) -> 0 | X28: =IF('GA 55 Editable'!X28="","",'GA 55 Editable'!X28) -> 0 | Y28: =IF('GA 55 Editable'!Y28="","",'GA 55 Editable'!Y28) -> 128,076 | Z28: =IF('GA 55 Editable'!Z28="","",'GA 55 Editable'!Z28) -> 743,878 | AA28: =IF('GA 55 Editable'!AA28="","",'GA 55 Editable'!AA28) -> 0
B31: Signature Of Employee | Y31: Signature Of DDO

Sheet Tax Calculaton Old
A1: =Master!A1 -> Office of the Principal DIET Kuchaman City (Nagaur)
A2: आयकर गणना प्रपत्र वर्ष 2021-22
A3: 1 | B3: नाम कर्मचारी | D3: =IF(Master!B4="","",Master!B4) -> Ashwini Kumar Sharma | I3: पद | J3: =IF(Master!D4="","",Master!D4) -> Lecturer | L3: पैन नं. | M3: =IF(Master!B6="","",Master!B6) -> AAAA9456A
A4: 2 | B4: आय वर्ष 2020-21 में प्राप्त कुल वेतन - | M4: =IF(Master!F9="NO",'GA 55 For Print'!J28,SUM('GA 55 For Print'!J28+'GA 55 For Print'!M28)) -> 952918.00
A5: 3 | B5: गृह किराया, धारा 10 (13-A) के अंतर्गत एवं धारा 10 (14) के अंतर्गत अन्य भत्ते जो कर मुक्त है - | M5: =SUM('Other Ded.'!D3,'Other Ded.'!G19) -> 0.00
A6: 4 | B6: शेष (2-3) | M6: =M4-M5 -> 952918.00
A7: 5 | B7: (I)Standard Deduction Maxium 50000 धारा 16 (i a) | L7: =IF($M$6>50000,50000,$M$6) -> 50000.00
B8: (II)मनोरंजन भत्ता धारा 16 (ii) के अंतर्गत Maxium 5000 | L8: ='Other Ded.'!G4 -> 0.00
B9: (III)वयवसाय कर धारा 16 (iii) के अंतर्गत | L9: ='Other Ded.'!G5 -> 0.00
B10: योग 5 | M10: =SUM(L7:L9) -> 50000.00
A11: 6 | B11: शेष (4-5) | M11: =M6-M10 -> 902918.00
A12: 7 | B12: (अ) गृह सम्पति से आय (1) स्वयं के उपयोग में शून्य | H12: (2) प्राप्त किराया रूपये | K12: ='Other Ded.'!D4 -> 0.00
B13: (ब) घटाइए | D13: किराये का 30% | F13: गृह ऋण पर ब्याज | H13: गृह कर | J13: योग 7 (ब)
D14: =ROUND($K$12*0.3,0) -> 0.00 | F14: =IF('Other Ded.'!D9>200000,200000,'Other Ded.'!D9) -> 0.00 | H14: ='Other Ded.'!D5 -> 0.00 | J14: =SUM(D14:I14) -> 0.00
B15: शेष - / + (7(अ) एवं 7 (ब) का) | M15: =$K$12-$J$14 -> 0.00
A16: 8 | B16: कुल शेष - / + (6 एवं 7) | M16: =$M$11+$M$15 -> 902918.00
A17: 9 | B17: अन्य आय | M17: ='Other Ded.'!K5 -> 0.00
A18: 10 | B18: सकल आय (योग 8+9) | M18: =SUM(M16:M17) -> 902918.00
A19: 11 | B19: कटौतिया घटाइए - धारा US 80C, 80CCC, 80CCD(1)
B20: (A) अधिकतम सीमा 150000 (धारा 80CCE), धारा 80CCD(2) के अलावा
B21: 1 | C21: राज्य बीमा (SI) | F21: =SUM('GA 55 For Print'!K28+'GA 55 For Print'!P28) -> 36000.00 | H21: 11 | I21: EPEF (80CCD1) | L21: =IF(Master!F9="Yes",'Other Ded.'!D6-M33,0) -> 80964.00
B22: 2 | C22: LIC | F22: =SUM('GA 55 For Print'!S28,'Other Ded.'!D10) -> 0.00 | H22: 12 | I22: पेंशन प्लान हेतु अंशदान धारा (80CCC) | L22: ='Other Ded.'!G9 -> 0.00
B23: 3 | C23: GPF/GPF2004 | F23: =IF(Master!F9="Yes",'GA 55 For Print'!U28,'GA 55 For Print'!L28) -> 7752.00 | H23: 13 | I23: राष्ट्रीय बचत पत्र पर ब्याज | L23: ='Other Ded.'!D18 -> 0.00
B24: 4 | C24: राष्ट्रीय बचत पत्र (NSC) | F24: ='Other Ded.'!D17 -> 0.00 | H24: 14 | I24: ट्यूशन फीस | L24: ='Other Ded.'!D12 -> 0.00
B25: 5 | C25: लोक भविष्य निधि (PPF) | F25: ='Other Ded.'!D13 -> 0.00 | H25: 15 | I25: इक्विटी लिंक सेविंग स्कीम | L25: ='Other Ded.'!D20 -> 0.00
B26: 6 | C26: राष्ट्रीय बचत स्कीम (NSS) | F26: ='Other Ded.'!D16 -> 0.00 | H26: 16 | I26: Defferred Annuty | L26: ='Other Ded.'!G3 -> 0.00
B27: 7 | C27: GIS | F27: ='GA 55 For Print'!R28 -> 220.00 | H27: 17 | I27: PLI | L27: ='Other Ded.'!D11 -> 0.00
B28: 8 | C28: ULIP / वार्षिक प्लान | F28: ='Other Ded.'!D15 -> 0.00 | H28: 18 | I28: धारा 80C के अंतर्गत अन्य जमा राशि | L28: ='Other Ded.'!G8 -> 0.00
B29: 9 | C29: Home Loan Premium | F29: ='Other Ded.'!D8 -> 0.00 | H29: 19 | I29: योग 1 से 18 तक | L29: =SUM(F21:G30,L21:L28) -> 124936.00
B30: 10 | C30: सुकन्या योजना में जमा | F30: ='Other Ded.'!D14 -> 0.00
B31: अधिकतम कटौती राशि रूपए 150000 तक | M31: =IF($L$29<150001,ROUND($L$29,0),150000) -> 124936.00
B32: (B) | C32: घटाइए धारा 80CCD (2) नियोक्ता द्वारा पेंशन अंशदान की राशि (अधिकतम वेतन का 10%) | M32: ='Other Ded.'!J6 -> 80964.00
B33: (C) | C33: घटाइए धारा 80CCD (1B)नवीन पेंशन योजना में अतिरिक्त अंशदान (अधिकतम रूपए 50000) | M33: =IF('Other Ded.'!G10<50000,'Other Ded.'!G10,50000) -> 0.00
B34: योग 11 (A+B+C) | M34: =SUM(M31:M33) -> 205900.00
A35: 12 | B35: अन्य कटौतिया
B36: 1 | C36: धारा 80 D, चिकित्सा बीमा प्रीमियम (स्वयं,पति/पत्नी व बच्चों के लिए रू 25000, माता-पिता के लिए रू 25000,सीनियर सिटीजन रू 50000) | M36: ='Other Ded.'!G11 -> 2640.00
B37: 2 | C37: धारा 80DD विकलांग आश्रितों के चिकित्सा उपचार (अधिकतम 75,000 तथा 80% या अधिक विकलांगता 125,000) | M37: ='Other Ded.'!G12 -> 0.00
B38: 3 | C38: धारा 80 DB विशिष्ट रोंगों के उपचार हेतु कटौती (अधिकतम रू 40,000, सीनियर सिटीजन हेतु रू 100,000) | M38: ='Other Ded.'!G13 -> 0.00
B39: 4 | C39: धारा 80 E उच्च शिक्षा हेतु लिए ऋण का ब्याज | M39: ='Other Ded.'!G14 -> 0.00
B40: 5 | C40: धारा 80 G धर्मार्थ संस्थाओं आदि को दिये दान ( क श्रेणी में 100 प्रतिशत एवं ख श्रेणी में 50 प्रतिशत) | M40: =SUM('Other Ded.'!D7,'Other Ded.'!G20) -> 0.00
B41: 6 | C41: धारा 80 U स्थाई रूप से शारीरिक असमर्थतता की दशा में (अधिकतम 75,000 तथा अधिनियम 1995के अनुसार 125,000) | M41: ='Other Ded.'!G15 -> 0.00
B42: 7 | C42: धारा 80 TTA बचत खाते पर ब्याज की अधिकतम छूट रू. 10,000 U/S 194(IA) | M42: =IF(Master!$F$11="Yes",0,IF('Other Ded.'!D19>10000,10000,'Other Ded.'!D19)) -> 0.00
B43: 8 | C43: धारा 80 TTB वरिष्ठ नागरिकों को सभी प्रकार के ब्याज पर अधिकतम छूट- 50000 रू. U/S 194(A) | M43: =IF(Master!$F$11="No",0,IF('Other Ded.'!K4<50001,'Other Ded.'!K4,50000)) -> 0.00
B44: 9 | C44: धारा 80 GGA अनुमोदित वैज्ञानिक, सामाजिक, ग्रामीण विकास आदि हेतु दिया गया दान | M44: ='Other Ded.'!G16 -> 0.00
B45: योग 12 (1 to 9) | M45: =SUM(M36:M44) -> 2640.00
A46: 13 | B46: कुल कटौती (11+12) | M46: =SUM(M34,M45) -> 208540.00
A47: 14 | B47: कर योग्य आय (10-13) | M47: =$M$18-$M$46 -> 694378.00
A48: 15 | B48: कुल आय की राशि को सम्पूर्ण करना (दस के गुणक में) धारा 288 A | M48: =ROUND($M$47,-1) -> 694380.00
A49: 16 | B49: आयकर की गणना
B50: एक व्यक्ति कर दाता | F50: वरिष्ठ नागरिक (60 से 80 वर्ष) | J50: 80 वर्ष या अधिक आयु
B51: 250000 तक | E51: NIL | F51: 300000 तक | I51: NIL | M51: 0.00
B52: 250001 से 50000 तक | E52: 5% | F52: 300001 से 50000 तक | I52: 5% | J52: 50000 तक | L52: NIL | M52: =ROUND(IF(Master!F11="NO",IF(M48<250001,0,IF(M48>500000,12500,((M48-250000)*0.05))),IF(M48<300001,0,IF(M48>500000,10000,((M48-300000)*0.05)))),0) -> 12500.00
B53: 500001 से 1000000 तक | E53: 20% | F53: 500001 से 1000000 तक | I53: 20% | J53: 500001 से 1000000 तक | L53: 20% | M53: =ROUND(IF(M48<500001,0,IF(M48>1000000,100000,((M48-500000)*0.2))),0) -> 38876.00
B54: 1000001 से अधिक | E54: 30% | F54: 1000001 से अधिक | I54: 30% | J54: 1000001 से अधिक | L54: 30% | M54: =ROUND(IF(M48<1000001,0,((M48-1000000)*0.3)),0) -> 0.00
B55: 1 | C55: योग आयकर | M55: =SUM(M51:M54) -> 51376.00
B56: 2 | C56: छूट घारा 87(A) (2.50 लाख से 5 लाख तक की कर योग्य आय पर आयकर की छूट अधिकतम रू. 12500 तक) | M56: =IF(M48>500000,0,IF(M55<12501,M55,12500)) -> 0.00
B57: 3 | C57: शेष आयकर (1-2) | M57: =M55-M56 -> 51376.00
B58: 4 | C58: शिक्षा उपकर 2% एवं उच्च शिक्षा के लिए अधिभार 2% (योग 4%) | M58: =ROUND(M57*0.04,0) -> 2055.00
B59: कुल आयकर (3+4) | M59: =SUM(M57:M58) -> 53431.00
A60: 17 | B60: घटाइये :- राहत धारा 89 के तहत | M60: ='Other Ded.'!G17 -> 0.00
A61: 18 | B61: कुल शेष आयकर | M61: =M59-M60 -> 53431.00
A62: 19 | B62: आयकर कटौती का विवरण | D62: सितम्बर 2021 तक | F62: अक्टूबर से दिसम्बर 2021 तक | H62: जनवरी 2022 | J62: फ़रवरी 2022 | L62: टी.डी.एस. | M62: कुल टैक्स कटौती (योग कॉलम 19)
D63: =SUM('GA 55 For Print'!$X$7:$X$13) -> 0.00 | F63: =SUM('GA 55 For Print'!$X$14:$X$16) -> 0.00 | H63: ='GA 55 For Print'!$X$17 -> 0.00 | J63: ='GA 55 For Print'!$X$18 -> 0.00 | L63: =SUM('GA 55 Editable'!$X$19:$X$26)+'Other Ded.'!$G$18 -> 0.00 | M63: =SUM($D$63:$L$63) -> 0.00
A64: =IF(M61>M63,"Income Tax Payable",IF(M61<M63,"Income Tax Refundable","Income Tax No Need")) -> Income Tax Payable | M64: =M61-M63 -> 53431.00
A66: Signature Of Employee | L66: Signature Of DDO

Sheet Tax Calculaton New
A1: =Master!A1 -> Office of the Principal DIET Kuchaman City (Nagaur)
A2: आयकर गणना प्रपत्र वर्ष 2021-22
A3: 1 | B3: नाम कर्मचारी | D3: =Master!B4 -> Ashwini Kumar Sharma | I3: पद | J3: =Master!D4 -> Lecturer | L3: पैन नं. | M3: =Master!B6 -> AAAA9456A
A4: 2 | B4: आय वर्ष 2020-21 में प्राप्त कुल वेतन - | M4: ='Tax Calculaton Old'!M4 -> 952918.00
A5: 3 | B5: गृह किराया, धारा 10 (13-A) के अंतर्गत एवं धारा 10 (14) के अंतर्गत अन्य भत्ते जो कर मुक्त है - | M5: =SUM('Other Ded.'!D3,'Other Ded.'!G19) -> 0.00
A6: 4 | B6: शेष (2-3) | M6: =M4-M5 -> 952918.00
A7: 5 | B7: (I)Standard Deduction Maxium 50000 धारा 16 (i a) | L7: 0.00
B8: (II)मनोरंजन भत्ता धारा 16 (ii) के अंतर्गत Maxium 5000 | L8: ='Other Ded.'!G4 -> 0.00
B9: (III)वयवसाय कर धारा 16 (iii) के अंतर्गत | L9: ='Other Ded.'!G5 -> 0.00
B10: योग 5 | M10: =SUM(L7:L9) -> 0.00
A11: 6 | B11: शेष (4-5) | M11: =M6-M10 -> 952918.00
A12: 7 | B12: (अ) गृह सम्पति से आय (1) स्वयं के उपयोग में शून्य | H12: (2) प्राप्त किराया रूपये | K12: 0.00
B13: (ब) घटाइए | D13: किराये का 30% | F13: गृह ऋण पर ब्याज | H13: गृह कर | J13: योग 7 (ब)
D14: 0.00 | F14: 0.00 | H14: 0.00 | J14: =SUM(D14:I14) -> 0.00
B15: शेष - / + (7(अ) एवं 7 (ब) का) | M15: =$K$12+$J$14 -> 0.00
A16: 8 | B16: कुल शेष - / + (6 एवं 7) | M16: =$M$11-$M$15 -> 952918.00
A17: 9 | B17: अन्य आय | M17: ='Other Ded.'!K5 -> 0.00
A18: 10 | B18: सकल आय (योग 8+9) | M18: =SUM(M16:M17) -> 952918.00
A19: 11 | B19: कटौतिया घटाइए - धारा US 80C, 80CCC, 80CCD(1)
B20: (A) धारा US 80C, 80CCC, 80CCD(1) अधिकतम कटौती की राशि | M20: 0.00
B21: (B) धारा 80CCD(2) नियोक्ता द्वारा पेंशन अंशदान की राशि (अधिकतम वेतन का 10% पृथक से छूट) | M21: ='Other Ded.'!J6 -> 80964.00
B22: (C) धारा 80CCD(1B) नवीन पेंशन योजना में अतिरिक्त अंशदान (अधिकतम रू. 50,000) | M22: 0.00
B23: योग 11 (A+B+C) | M23: =SUM(M20:M22) -> 80964.00
A24: 12 | B24: अन्य कटौतिया
B25: 1 | C25: धारा 80 D, चिकित्सा बीमा प्रीमियम (स्वयं,पति/पत्नी व बच्चों के लिए रू 25000, माता-पिता के लिए रू 25000,सीनियर सिटीजन रू 50000) | M25: 0.00
B26: 2 | C26: धारा 80DD विकलांग आश्रितों के चिकित्सा उपचार (अधिकतम 75,000 तथा 80ः या अधिक विकलांगता 125,000) | M26: 0.00
B27: 3 | C27: धारा 80 DB विशिष्ट रोंगों के उपचार हेतु कटौती (अधिकतम रू 40,000, सीनियर सिटीजन हेतु रू 100,000) | M27: 0.00
B28: 4 | C28: धारा 80 E उच्च शिक्षा हेतु लिए ऋण का ब्याज | M28: 0.00
B29: 5 | C29: धारा 80 G धर्मार्थ संस्थाओं आदि को दिये दान ( क श्रेणी में 100 प्रतिशत एवं ख श्रेणी में 50 प्रतिशत) | M29: 0.00
B30: 6 | C30: धारा 80 U स्थाई रूप से शारीरिक असमर्थतता की दशा में (अधिकतम 75,000 तथा अधिनियम 1995के अनुसार 125,000) | M30: 0.00
B31: 7 | C31: धारा 80 TTA बचत खाते पर ब्याज की अधिकतम छूट रू. 10,000 U/S 194(IA) | M31: 0.00
B32: 8 | C32: धारा 80 TTB वरिष्ठ नागरिकों को सभी प्रकार के ब्याज पर अधिकतम छूट- 50000 रू. U/S 194(A) | M32: 0.00
B33: 9 | C33: धारा 80 GGA अनुमोदित वैज्ञानिक, सामाजिक, ग्रामीण विकास आदि हेतु दिया गया दान | M33: 0.00
B34: योग 12 (1 to 9) | M34: =SUM(M25:M33) -> 0.00
A35: 13 | B35: कुल कटौती (11+12) | M35: =SUM($M$23+$M$34) -> 80964.00
A36: 14 | B36: कर योग्य आय (10-13) | M36: =$M$18-$M$35 -> 871954.00
A37: 15 | B37: कुल आय की राशि को सम्पूर्ण करना (दस के गुणक में) धारा 288 A | M37: =ROUND($M$36,-1) -> 871950.00
A38: 16 | B38: आयकर की गणना
B39: एक व्यक्ति कर दाता | F39: वरिष्ठ नागरिक (60 से 80 वर्ष) | J39: 80 वर्ष या अधिक आयु
B40: 250000 तक | E40: NIL | F40: 300000 तक | I40: NIL | L40: NIL | M40: 0.00
B41: 250001 से 500000 तक | E41: 5% | F41: 300001 से 500000 तक | I41: 5% | J41: 50000 तक | L41: 5% | M41: =ROUND(IF(Master!F11="NO",IF(M37<250001,0,IF(M37>500000,12500,((M37-250000)*0.05))),IF(M37<300001,0,IF(M37>500000,10000,((M37-300000)*0.05)))),0) -> 12500.00
B42: 500001 से 750000 तक | E42: 10% | F42: 500001 से 750000 तक | I42: 10% | J42: 500001 से 1000000 तक | L42: 10% | M42: =ROUND(IF(M37<500001,0,IF(M37>750000,25000,((M37-500000)*0.1))),0) -> 25000.00
B43: 750001 से 1000000 तक | E43: 15% | F43: 750001 से 1000000 तक | I43: 15% | J43: 1000001 से अधिक | L43: 15% | M43: =ROUND(IF(M37<750001,0,IF(M37>1000000,37500,((M37-750000)*0.15))),0) -> 18293.00
B44: 1000001 से 1250000 तक | E44: 20% | F44: 1000001 से 1250000 तक | I44: 20% | J44: 1000001 से अधिक | L44: 20% | M44: =ROUND(IF(M37<1000001,0,IF(M37>1250000,50000,((M37-1000000)*0.2))),0) -> 0.00
B45: 1250000 से 1500000 तक | E45: 25% | F45: 1250000 से 1500000 तक | I45: 25% | J45: 1000001 से अधिक | L45: 25% | M45: =ROUND(IF(M37<1250001,0,IF(M37>1500000,62500,((M37-1250000)*0.25))),0) -> 0.00
B46: 1500000 से अधिक | E46: 30% | F46: 1500000 से अधिक | I46: 30% | J46: 1500000 से अधिक | L46: 30% | M46: =ROUND(IF(M37<1500001,0,(M37-1500000)*0.3),0) -> 0.00
B47: 1 | C47: योग आयकर | M47: =SUM(M40:M46) -> 55793.00
B48: 2 | C48: छूट घारा 87(A) (2.50 लाख से 5 लाख तक की कर योग्य आय पर आयकर की छूट अधिकतम रू. 12500 तक) | M48: =IF(M37>500000,0,IF(M47<12501,M47,12500)) -> 0.00
B49: 3 | C49: शेष आयकर (1-2) | M49: =M47-M48 -> 55793.00
B50: 4 | C50: शिक्षा उपकर 2% एवं उच्च शिक्षा के लिए अधिभार 2% (योग 4%) | M50: =ROUND(M49*0.04,0) -> 2232.00
B51: कुल आयकर (3+4) | M51: =SUM(M49:M50) -> 58025.00
A52: 17 | B52: घटाइये :- राहत धारा 89 के तहत | M52: ='Other Ded.'!G17 -> 0.00
A53: 18 | B53: कुल शेष आयकर | M53: =M51-M52 -> 58025.00
A54: 19 | B54: आयकर कटौती का विवरण | D54: सितम्बर 2021 तक | F54: अक्टूबर से दिसम्बर 2021 तक | H54: जनवरी 2022 | J54: फ़रवरी 2022 | L54: टी.डी.एस. | M54: कुल टैक्स कटौती (योग कॉलम 19)
D55: =SUM('GA 55 For Print'!$X$7:$X$13) -> 0.00 | F55: =SUM('GA 55 For Print'!$X$14:$X$16) -> 0.00 | H55: ='GA 55 For Print'!$X$17 -> 0.00 | J55: ='GA 55 For Print'!$X$18 -> 0.00 | L55: =SUM('GA 55 Editable'!$X$19:$X$26)+'Other Ded.'!$G$18 -> 0.00 | M55: =SUM(D55:L55) -> 0.00
A56: =IF(M53>M55,"Income Tax Payable",IF(M53<M55,"Income Tax Refundable","Income Tax No Need")) -> Income Tax Payable | M56: =M53-M55 -> 58025.00
A58: Signature Of Employee | L58: Signature Of DDO
